Workbook

Sheet 은평구총괄
B1: 은평구 등록장애인 현황 (2025. 6월 말 기준)
B3: 서울특별시 은평구 | J3: (단위 : 명)
B5: 자치구 | C5: 장애유형 | D5: 합계 | G5: 심한 장애 | J5: 심하지 않은 장애
D6: 계 | E6: 남 | F6: 여 | G6: 계 | H6: 남 | I6: 여 | J6: 계 | K6: 남 | L6: 여
B7: 은평구 | C7: 합 계 | D7: =E7+F7 -> 21226 | E7: =H7+K7 -> 12347 | F7: =I7+L7 -> 8879 | G7: =SUM(G8:G22) -> 8045 | H7: 5012 | I7: 3033 | J7: 13181 | K7: 7335 | L7: 5846
C8: 지체 | D8: =E8+F8 -> 8269 | E8: =H8+K8 -> 4512 | F8: =I8+L8 -> 3757 | G8: 1333 | H8: 855 | I8: 478 | J8: 6936 | K8: 3657 | L8: 3279
C9: 시각 | D9: 2260 | E9: =H9+K9 -> 1325 | F9: =I9+L9 -> 935 | G9: 427 | H9: 230 | I9: 197 | J9: 1833 | K9: 1095 | L9: 738
C10: 청각 | D10: 3352 | E10: 1851 | F10: 1501 | G10: 609 | H10: 299 | I10: 310 | J10: 2743 | K10: 1552 | L10: 1191
C11: 언어 | D11: 162 | E11: 118 | F11: 44 | G11: 89 | H11: 65 | I11: 24 | J11: 73 | K11: 53 | L11: 20
C12: 지적 | D12: 1891 | E12: 1241 | F12: 650 | G12: 1891 | H12: 1241 | I12: 650 | J12: 0 | K12: 0 | L12: 0
C13: 뇌병변 | D13: 2069 | E13: 1224 | F13: 845 | G13: 1156 | H13: 652 | I13: 504 | J13: 913 | K13: 572 | L13: 341
C14: 자폐성 | D14: 514 | E14: 427 | F14: 87 | G14: 514 | H14: 427 | I14: 87 | J14: 0 | K14: 0 | L14: 0
C15: 정신 | D15: 1119 | E15: 678 | F15: 441 | G15: 1081 | H15: 659 | I15: 422 | J15: 38 | K15: 19 | L15: 19
C16: 신장 | D16: 978 | E16: 587 | F16: 391 | G16: 763 | H16: 465 | I16: 298 | J16: 215 | K16: 122 | L16: 93
C17: 심장 | D17: 44 | E17: 26 | F17: 18 | G17: 30 | H17: 14 | I17: 16 | J17: 14 | K17: 12 | L17: 2
C18: 호흡기 | D18: 114 | E18: 80 | F18: 34 | G18: 107 | H18: 78 | I18: 29 | J18: 7 | K18: 2 | L18: 5
C19: 간 | D19: 170 | E19: 110 | F19: 60 | G19: 7 | H19: 5 | I19: 2 | J19: 163 | K19: 105 | L19: 58
C20: 안면 | D20: 24 | E20: 14 | F20: 10 | G20: 9 | H20: 6 | I20: 3 | J20: 15 | K20: 8 | L20: 7
C21: 장루.요루 | D21: 196 | E21: 122 | F21: 74 | G21: 18 | H21: 10 | I21: 8 | J21: 178 | K21: 112 | L21: 66
C22: 뇌전증 | D22: =E22+F22 -> 64 | E22: =H22+K22 -> 32 | F22: =I22+L22 -> 32 | G22: 11 | H22: 6 | I22: 5 | J22: 53 | K22: 26 | L22: 27

Sheet 유형별
A1: 은평구 동별 장애인현황(유형별) (2025. 6월말)
A2: 동별 | B2: 합계 | E2: 지체 | H2: 시각 | K2: 청각 | N2: 언어 | Q2: 지적 | T2: 뇌병변 | W2: 자폐 | Z2: 정신 | AC2: 신장 | AF2: 심장 | AI2: 호흡기 | AL2: 간 | AO2: 안면 | AR2: 장루.요루 | AU2: 뇌전증
B3: 합계 | C3: 남성 | D3: 여성 | E3: 소계 | F3: 남성 | G3: 여성 | H3: 소계 | I3: 남성 | J3: 여성 | K3: 소계 | L3: 남성 | M3: 여성 | N3: 소계 | O3: 남성 | P3: 여성 | Q3: 소계 | R3: 남성 | S3: 여성 | T3: 소계 | U3: 남성 | V3: 여성 | W3: 소계 | X3: 남성 | Y3: 여성 | Z3: 소계 | AA3: 남성 | AB3: 여성 | AC3: 소계 | AD3: 남성 | AE3: 여성 | AF3: 소계 | AG3: 남성 | AH3: 여성 | AI3: 소계 | AJ3: 남성 | AK3: 여성 | AL3: 소계 | AM3: 남성 | AN3: 여성 | AO3: 소계 | AP3: 남성 | AQ3: 여성 | AR3: 소계 | AS3: 남성 | AT3: 여성 | AU3: 소계 | AV3: 남성 | AW3: 여성
A4: 합 계 | B4: =SUM(B5:B20) -> 21226 | C4: =SUM(C5:C20) -> 12347 | D4: =SUM(D5:D20) -> 8879 | E4: =SUM(E5:E20) -> 8269 | F4: =SUM(F5:F20) -> 4512 | G4: 3757 | H4: 2260 | I4: 1325 | J4: 935 | K4: 3352 | L4: 1851 | M4: 1501 | N4: 162 | O4: 118 | P4: 44 | Q4: 1891 | R4: 1241 | S4: 650 | T4: 2069 | U4: 1224 | V4: 845 | W4: 514 | X4: 427 | Y4: 87 | Z4: 1119 | AA4: 678 | AB4: 441 | AC4: 978 | AD4: 587 | AE4: 391 | AF4: 44 | AG4: 26 | AH4: 18 | AI4: 114 | AJ4: 80 | AK4: 34 | AL4: 170 | AM4: 110 | AN4: 60 | AO4: 24 | AP4: 14 | AQ4: 10 | AR4: 196 | AS4: 122 | AT4: 74 | AU4: 64 | AV4: 32 | AW4: 32
A5: 녹번동 | B5: =C5+D5 -> 1617 | C5: =SUM(F5,I5,L5,O5,R5,U5,X5,AA5,AD5,AG5,AJ5,AM5,AP5,AS5,AV5) -> 925 | D5: =SUM(G5,J5,M5,P5,S5,V5,Y5,AB5,AE5,AH5,AK5,AN5,AQ5,AT5,AW5) -> 692 | E5: 667 | F5: 362 | G5: 305 | H5: 176 | I5: 114 | J5: 62 | K5: 296 | L5: 159 | M5: 137 | N5: 13 | O5: 9 | P5: 4 | Q5: 112 | R5: 71 | S5: 41 | T5: 159 | U5: 84 | V5: 75 | W5: 22 | X5: 16 | Y5: 6 | Z5: 62 | AA5: 34 | AB5: 28 | AC5: 72 | AD5: 47 | AE5: 25 | AF5: 2 | AG5: 1 | AH5: 1 | AI5: 5 | AJ5: 3 | AK5: 2 | AL5: 9 | AM5: 8 | AN5: 1 | AO5: 3 | AP5: 3 | AQ5: 0 | AR5: 18 | AS5: 13 | AT5: 5 | AU5: 1 | AV5: 1 | AW5: 0
A6: 불광1동 | B6: =C6+D6 -> 1622 | C6: 909 | D6: =SUM(G6,J6,M6,P6,S6,V6,Y6,AB6,AE6,AH6,AK6,AN6,AQ6,AT6,AW6) -> 713 | E6: 651 | F6: 356 | G6: 295 | H6: 182 | I6: 106 | J6: 76 | K6: 258 | L6: 149 | M6: 109 | N6: 14 | O6: 10 | P6: 4 | Q6: 112 | R6: 64 | S6: 48 | T6: 156 | U6: 84 | V6: 72 | W6: 32 | X6: 27 | Y6: 5 | Z6: 70 | AA6: 36 | AB6: 34 | AC6: 95 | AD6: 47 | AE6: 48 | AF6: 4 | AG6: 1 | AH6: 3 | AI6: 8 | AJ6: 7 | AK6: 1 | AL6: 18 | AM6: 10 | AN6: 8 | AO6: 1 | AP6: 1 | AQ6: 0 | AR6: 15 | AS6: 8 | AT6: 7 | AU6: 6 | AV6: 3 | AW6: 3
A7: 불광2동 | B7: 1437 | C7: 843 | D7: 594 | E7: 550 | F7: 311 | G7: 239 | H7: 169 | I7: 113 | J7: 56 | K7: 255 | L7: 146 | M7: 109 | N7: 15 | O7: 14 | P7: 1 | Q7: 118 | R7: 74 | S7: 44 | T7: 123 | U7: 73 | V7: 50 | W7: 29 | X7: 29 | Y7: 0 | Z7: 69 | AA7: 26 | AB7: 43 | AC7: 67 | AD7: 37 | AE7: 30 | AF7: 3 | AG7: 3 | AH7: 0 | AI7: 2 | AJ7: 2 | AK7: 0 | AL7: 7 | AM7: 4 | AN7: 3 | AO7: 3 | AP7: 1 | AQ7: 2 | AR7: 17 | AS7: 6 | AT7: 11 | AU7: 10 | AV7: 4 | AW7: 6
A8: 갈현1동 | B8: 690 | C8: 391 | D8: 299 | E8: 274 | F8: 143 | G8: 131 | H8: 83 | I8: 48 | J8: 35 | K8: 112 | L8: 62 | M8: 50 | N8: 4 | O8: 3 | P8: 1 | Q8: 58 | R8: 37 | S8: 21 | T8: 57 | U8: 39 | V8: 18 | W8: 18 | X8: 16 | Y8: 2 | Z8: 32 | AA8: 16 | AB8: 16 | AC8: 30 | AD8: 14 | AE8: 16 | AF8: 2 | AG8: 1 | AH8: 1 | AI8: 2 | AJ8: 2 | AK8: 0 | AL8: 9 | AM8: 6 | AN8: 3 | AO8: 0 | AP8: 0 | AQ8: 0 | AR8: 8 | AS8: 3 | AT8: 5 | AU8: 1 | AV8: 1 | AW8: 0
A9: 갈현2동 | B9: 1254 | C9: 736 | D9: 518 | E9: 505 | F9: 280 | G9: 225 | H9: 128 | I9: 81 | J9: 47 | K9: 198 | L9: 119 | M9: 79 | N9: 18 | O9: 14 | P9: 4 | Q9: 110 | R9: 69 | S9: 41 | T9: 106 | U9: 65 | V9: 41 | W9: 21 | X9: 14 | Y9: 7 | Z9: 73 | AA9: 32 | AB9: 41 | AC9: 59 | AD9: 39 | AE9: 20 | AF9: 5 | AG9: 2 | AH9: 3 | AI9: 7 | AJ9: 6 | AK9: 1 | AL9: 13 | AM9: 8 | AN9: 5 | AO9: 0 | AP9: 0 | AQ9: 0 | AR9: 8 | AS9: 6 | AT9: 2 | AU9: 3 | AV9: 1 | AW9: 2
A10: 구산동 | B10: 2106 | C10: 1451 | D10: 655 | E10: 586 | F10: 329 | G10: 257 | H10: 164 | I10: 100 | J10: 64 | K10: 234 | L10: 134 | M10: 100 | N10: 12 | O10: 9 | P10: 3 | Q10: 403 | R10: 312 | S10: 91 | T10: 219 | U10: 159 | V10: 60 | W10: 50 | X10: 40 | Y10: 10 | Z10: 307 | AA10: 271 | AB10: 36 | AC10: 63 | AD10: 45 | AE10: 18 | AF10: 0 | AG10: 0 | AH10: 0 | AI10: 24 | AJ10: 17 | AK10: 7 | AL10: 17 | AM10: 15 | AN10: 2 | AO10: 2 | AP10: 1 | AQ10: 1 | AR10: 20 | AS10: 16 | AT10: 4 | AU10: 5 | AV10: 3 | AW10: 2
A11: 대조동 | B11: 1231 | C11: 709 | D11: 522 | E11: 498 | F11: 275 | G11: 223 | H11: 144 | I11: 76 | J11: 68 | K11: 204 | L11: 119 | M11: 85 | N11: 7 | O11: 5 | P11: 2 | Q11: 72 | R11: 48 | S11: 24 | T11: 117 | U11: 66 | V11: 51 | W11: 28 | X11: 23 | Y11: 5 | Z11: 70 | AA11: 35 | AB11: 35 | AC11: 64 | AD11: 42 | AE11: 22 | AF11: 2 | AG11: 1 | AH11: 1 | AI11: 6 | AJ11: 5 | AK11: 1 | AL11: 4 | AM11: 3 | AN11: 1 | AO11: 1 | AP11: 1 | AQ11: 0 | AR11: 11 | AS11: 9 | AT11: 2 | AU11: 3 | AV11: 1 | AW11: 2
A12: 응암1동 | B12: 1312 | C12: 710 | D12: 602 | E12: 564 | F12: 289 | G12: 275 | H12: 151 | I12: 85 | J12: 66 | K12: 218 | L12: 102 | M12: 116 | N12: 7 | O12: 5 | P12: 2 | Q12: 71 | R12: 42 | S12: 29 | T12: 128 | U12: 77 | V12: 51 | W12: 35 | X12: 30 | Y12: 5 | Z12: 50 | AA12: 29 | AB12: 21 | AC12: 56 | AD12: 29 | AE12: 27 | AF12: 5 | AG12: 3 | AH12: 2 | AI12: 5 | AJ12: 5 | AK12: 0 | AL12: 8 | AM12: 4 | AN12: 4 | AO12: 2 | AP12: 2 | AQ12: 0 | AR12: 9 | AS12: 7 | AT12: 2 | AU12: 3 | AV12: 1 | AW12: 2
A13: 응암2동 | B13: 953 | C13: 531 | D13: 422 | E13: 361 | F13: 197 | G13: 164 | H13: 95 | I13: 49 | J13: 46 | K13: 154 | L13: 75 | M13: 79 | N13: 7 | O13: 6 | P13: 1 | Q13: 69 | R13: 43 | S13: 26 | T13: 97 | U13: 52 | V13: 45 | W13: 36 | X13: 31 | Y13: 5 | Z13: 47 | AA13: 31 | AB13: 16 | AC13: 53 | AD13: 27 | AE13: 26 | AF13: 2 | AG13: 2 | AH13: 0 | AI13: 10 | AJ13: 6 | AK13: 4 | AL13: 8 | AM13: 4 | AN13: 4 | AO13: 2 | AP13: 0 | AQ13: 2 | AR13: 7 | AS13: 4 | AT13: 3 | AU13: 5 | AV13: 4 | AW13: 1
A14: 응암3동 | B14: 1303 | C14: 727 | D14: 576 | E14: 506 | F14: 271 | G14: 235 | H14: 147 | I14: 84 | J14: 63 | K14: 242 | L14: 119 | M14: 123 | N14: 7 | O14: 5 | P14: 2 | Q14: 88 | R14: 58 | S14: 30 | T14: 138 | U14: 85 | V14: 53 | W14: 21 | X14: 16 | Y14: 5 | Z14: 51 | AA14: 27 | AB14: 24 | AC14: 58 | AD14: 39 | AE14: 19 | AF14: 4 | AG14: 2 | AH14: 2 | AI14: 8 | AJ14: 6 | AK14: 2 | AL14: 12 | AM14: 3 | AN14: 9 | AO14: 0 | AP14: 0 | AQ14: 0 | AR14: 14 | AS14: 10 | AT14: 4 | AU14: 7 | AV14: 2 | AW14: 5
A15: 역촌동 | B15: 2163 | C15: 1210 | D15: 953 | E15: 883 | F15: 464 | G15: 419 | H15: 203 | I15: 115 | J15: 88 | K15: 350 | L15: 201 | M15: 149 | N15: 17 | O15: 7 | P15: 10 | Q15: 205 | R15: 126 | S15: 79 | T15: 223 | U15: 135 | V15: 88 | W15: 41 | X15: 34 | Y15: 7 | Z15: 92 | AA15: 38 | AB15: 54 | AC15: 104 | AD15: 63 | AE15: 41 | AF15: 1 | AG15: 1 | AH15: 0 | AI15: 14 | AJ15: 7 | AK15: 7 | AL15: 12 | AM15: 8 | AN15: 4 | AO15: 2 | AP15: 1 | AQ15: 1 | AR15: 13 | AS15: 8 | AT15: 5 | AU15: 3 | AV15: 2 | AW15: 1
A16: 신사1동 | B16: 1255 | C16: 746 | D16: 509 | E16: 484 | F16: 285 | G16: 199 | H16: 154 | I16: 86 | J16: 68 | K16: 172 | L16: 108 | M16: 64 | N16: 16 | O16: 9 | P16: 7 | Q16: 148 | R16: 88 | S16: 60 | T16: 113 | U16: 62 | V16: 51 | W16: 31 | X16: 24 | Y16: 7 | Z16: 50 | AA16: 33 | AB16: 17 | AC16: 56 | AD16: 34 | AE16: 22 | AF16: 2 | AG16: 2 | AH16: 0 | AI16: 4 | AJ16: 2 | AK16: 2 | AL16: 6 | AM16: 4 | AN16: 2 | AO16: 2 | AP16: 1 | AQ16: 1 | AR16: 11 | AS16: 5 | AT16: 6 | AU16: 6 | AV16: 3 | AW16: 3
A17: 신사2동 | B17: 883 | C17: 509 | D17: 374 | E17: 380 | F17: 206 | G17: 174 | H17: 85 | I17: 58 | J17: 27 | K17: 136 | L17: 71 | M17: 65 | N17: 6 | O17: 6 | P17: 0 | Q17: 79 | R17: 46 | S17: 33 | T17: 73 | U17: 44 | V17: 29 | W17: 21 | X17: 17 | Y17: 4 | Z17: 26 | AA17: 15 | AB17: 11 | AC17: 51 | AD17: 30 | AE17: 21 | AF17: 3 | AG17: 1 | AH17: 2 | AI17: 7 | AJ17: 6 | AK17: 1 | AL17: 4 | AM17: 2 | AN17: 2 | AO17: 1 | AP17: 1 | AQ17: 0 | AR17: 9 | AS17: 4 | AT17: 5 | AU17: 2 | AV17: 2 | AW17: 0
A18: 증산동 | B18: 667 | C18: 393 | D18: 274 | E18: 284 | F18: 163 | G18: 121 | H18: 54 | I18: 29 | J18: 25 | K18: 116 | L18: 71 | M18: 45 | N18: 6 | O18: 3 | P18: 3 | Q18: 46 | R18: 31 | S18: 15 | T18: 57 | U18: 28 | V18: 29 | W18: 17 | X18: 17 | Y18: 0 | Z18: 33 | AA18: 15 | AB18: 18 | AC18: 31 | AD18: 20 | AE18: 11 | AF18: 1 | AG18: 1 | AH18: 0 | AI18: 3 | AJ18: 2 | AK18: 1 | AL18: 6 | AM18: 5 | AN18: 1 | AO18: 1 | AP18: 0 | AQ18: 1 | AR18: 8 | AS18: 7 | AT18: 1 | AU18: 4 | AV18: 1 | AW18: 3
A19: 수색동 | B19: 824 | C19: 444 | D19: 380 | E19: 318 | F19: 165 | G19: 153 | H19: 101 | I19: 55 | J19: 46 | K19: 127 | L19: 66 | M19: 61 | N19: 4 | O19: 4 | P19: 0 | Q19: 64 | R19: 43 | S19: 21 | T19: 98 | U19: 48 | V19: 50 | W19: 20 | X19: 17 | Y19: 3 | Z19: 31 | AA19: 13 | AB19: 18 | AC19: 35 | AD19: 19 | AE19: 16 | AF19: 1 | AG19: 0 | AH19: 1 | AI19: 3 | AJ19: 0 | AK19: 3 | AL19: 11 | AM19: 8 | AN19: 3 | AO19: 2 | AP19: 2 | AQ19: 0 | AR19: 9 | AS19: 4 | AT19: 5 | AU19: 0 | AV19: 0 | AW19: 0
A20: 진관동 | B20: 1909 | C20: 1113 | D20: 796 | E20: 758 | F20: 416 | G20: 342 | H20: 224 | I20: 126 | J20: 98 | K20: 280 | L20: 150 | M20: 130 | N20: 9 | O20: 9 | P20: 0 | Q20: 136 | R20: 89 | S20: 47 | T20: 205 | U20: 123 | V20: 82 | W20: 92 | X20: 76 | Y20: 16 | Z20: 56 | AA20: 27 | AB20: 29 | AC20: 84 | AD20: 55 | AE20: 29 | AF20: 7 | AG20: 5 | AH20: 2 | AI20: 6 | AJ20: 4 | AK20: 2 | AL20: 26 | AM20: 18 | AN20: 8 | AO20: 2 | AP20: 0 | AQ20: 2 | AR20: 19 | AS20: 12 | AT20: 7 | AU20: 5 | AV20: 3 | AW20: 2

Sheet 정도별
B2: 은평구 동별 장애인현황(정도별)
B3: *2025. 6월말 기준 | K3: (단위 : 명)
B4: 자치구 | C4: 동 | D4: 합계 | G4: 심한 장애 | J4: 심하지 않은 장애
D5: 계 | E5: 남자 | F5: 여자 | G5: 계 | H5: 남자 | I5: 여자 | J5: 계 | K5: 남자 | L5: 여자
B6: 은평구 | C6: 합 계 | D6: 21226 | E6: 12347 | F6: 8879 | G6: 8045 | H6: 5012 | I6: 3033 | J6: 13181 | K6: 7335 | L6: 5846
C7: 녹번동 | D7: 1617 | E7: 925 | F7: 692 | G7: 542 | H7: 314 | I7: 228 | J7: 1075 | K7: 611 | L7: 464
C8: 불광1동 | D8: 1622 | E8: 909 | F8: 713 | G8: 568 | H8: 317 | I8: 251 | J8: 1054 | K8: 592 | L8: 462
C9: 불광2동 | D9: 1437 | E9: 843 | F9: 594 | G9: 491 | H9: 293 | I9: 198 | J9: 946 | K9: 550 | L9: 396
C10: 갈현1동 | D10: 690 | E10: 391 | F10: 299 | G10: 246 | H10: 144 | I10: 102 | J10: 444 | K10: 247 | L10: 197
C11: 갈현2동 | D11: 1254 | E11: 736 | F11: 518 | G11: 473 | H11: 279 | I11: 194 | J11: 781 | K11: 457 | L11: 324
C12: 구산동 | D12: 2106 | E12: 1451 | F12: 655 | G12: 1142 | H12: 897 | I12: 245 | J12: 964 | K12: 554 | L12: 410
C13: 대조동 | D13: 1231 | E13: 709 | F13: 522 | G13: 446 | H13: 273 | I13: 173 | J13: 785 | K13: 436 | L13: 349
C14: 응암1동 | D14: 1312 | E14: 710 | F14: 602 | G14: 456 | H14: 257 | I14: 199 | J14: 856 | K14: 453 | L14: 403
C15: 응암2동 | D15: 953 | E15: 531 | F15: 422 | G15: 368 | H15: 228 | I15: 140 | J15: 585 | K15: 303 | L15: 282
C16: 응암3동 | D16: 1303 | E16: 727 | F16: 576 | G16: 400 | H16: 243 | I16: 157 | J16: 903 | K16: 484 | L16: 419
C17: 역촌동 | D17: 2163 | E17: 1210 | F17: 953 | G17: 799 | H17: 461 | I17: 338 | J17: 1364 | K17: 749 | L17: 615
C18: 신사1동 | D18: 1255 | E18: 746 | F18: 509 | G18: 494 | H18: 307 | I18: 187 | J18: 761 | K18: 439 | L18: 322
C19: 신사2동 | D19: 883 | E19: 509 | F19: 374 | G19: 304 | H19: 189 | I19: 115 | J19: 579 | K19: 320 | L19: 259
C20: 증산동 | D20: 667 | E20: 393 | F20: 274 | G20: 237 | H20: 148 | I20: 89 | J20: 430 | K20: 245 | L20: 185
C21: 수색동 | D21: 824 | E21: 444 | F21: 380 | G21: 321 | H21: 186 | I21: 135 | J21: 503 | K21: 258 | L21: 245
C22: 진관동 | D22: 1909 | E22: 1113 | F22: 796 | G22: 758 | H22: 476 | I22: 282 | J22: 1151 | K22: 637 | L22: 514

Sheet 연령별
A1: 은평구 장애인 연령구간별(5세 간격), 장애정도별 등록 현황
A2: =정도별!B3 -> *2025. 6월말 기준
J3: (단위: 명)
A4: 구분 | B4: 나이 | C4: 합계 | F4: 심한 장애 | I4: 심하지 않은 장애
C5: 합계 | D5: 남성 | E5: 여성 | F5: 소계 | G5: 남성 | H5: 여성 | I5: 소계 | J5: 남성 | K5: 여성
A6: 합계 | B6: 합계 | C6: 21226 | D6: 12347 | E6: 8879 | F6: 8045 | G6: 5012 | H6: 3033 | I6: 13181 | J6: 7335 | K6: 5846
B7: 0~4 | C7: 38 | D7: 20 | E7: 18 | F7: 30 | G7: 18 | H7: 12 | I7: 8 | J7: 2 | K7: 6
B8: 5~9 | C8: 266 | D8: 185 | E8: 81 | F8: 247 | G8: 176 | H8: 71 | I8: 19 | J8: 9 | K8: 10
B9: 10~14 | C9: 311 | D9: 206 | E9: 105 | F9: 288 | G9: 190 | H9: 98 | I9: 23 | J9: 16 | K9: 7
B10: 15~19 | C10: 277 | D10: 188 | E10: 89 | F10: 239 | G10: 166 | H10: 73 | I10: 38 | J10: 22 | K10: 16
B11: 20~24 | C11: 360 | D11: 227 | E11: 133 | F11: 298 | G11: 193 | H11: 105 | I11: 62 | J11: 34 | K11: 28
B12: 25~29 | C12: 492 | D12: 300 | E12: 192 | F12: 377 | G12: 242 | H12: 135 | I12: 115 | J12: 58 | K12: 57
B13: 30~34 | C13: 541 | D13: 352 | E13: 189 | F13: 412 | G13: 275 | H13: 137 | I13: 129 | J13: 77 | K13: 52
B14: 35~39 | C14: 508 | D14: 323 | E14: 185 | F14: 317 | G14: 208 | H14: 109 | I14: 191 | J14: 115 | K14: 76
B15: 40~44 | C15: 646 | D15: 436 | E15: 210 | F15: 352 | G15: 215 | H15: 137 | I15: 294 | J15: 221 | K15: 73
B16: 45~49 | C16: 825 | D16: 572 | E16: 253 | F16: 423 | G16: 285 | H16: 138 | I16: 402 | J16: 287 | K16: 115
B17: 50~54 | C17: 1297 | D17: 877 | E17: 420 | F17: 628 | G17: 394 | H17: 234 | I17: 669 | J17: 483 | K17: 186
B18: 55~59 | C18: 1632 | D18: 1091 | E18: 541 | F18: 715 | G18: 456 | H18: 259 | I18: 917 | J18: 635 | K18: 282
B19: 60~64 | C19: 2015 | D19: 1362 | E19: 653 | F19: 729 | G19: 489 | H19: 240 | I19: 1286 | J19: 873 | K19: 413
B20: 65~69 | C20: 2474 | D20: 1547 | E20: 927 | F20: 806 | G20: 517 | H20: 289 | I20: 1668 | J20: 1030 | K20: 638
B21: 70~74 | C21: 2416 | D21: 1352 | E21: 1064 | F21: 679 | G21: 439 | H21: 240 | I21: 1737 | J21: 913 | K21: 824
B22: 75~79 | C22: 2564 | D22: 1342 | E22: 1222 | F22: 595 | G22: 345 | H22: 250 | I22: 1969 | J22: 997 | K22: 972
B23: 80~84 | C23: 2376 | D23: 1100 | E23: 1276 | F23: 474 | G23: 236 | H23: 238 | I23: 1902 | J23: 864 | K23: 1038
B24: 85~89 | C24: 1542 | D24: 653 | E24: 889 | F24: 309 | G24: 126 | H24: 183 | I24: 1233 | J24: 527 | K24: 706
B25: 90~94 | C25: 531 | D25: 176 | E25: 355 | F25: 102 | G25: 35 | H25: 67 | I25: 429 | J25: 141 | K25: 288
B26: 95~99 | C26: 99 | D26: 34 | E26: 65 | F26: 21 | G26: 6 | H26: 15 | I26: 78 | J26: 28 | K26: 50
B27: 100~104 | C27: 15 | D27: 4 | E27: 11 | F27: 3 | G27: 1 | H27: 2 | I27: 12 | J27: 3 | K27: 9
B28: 105~109 | C28: 1 | D28: 0 | E28: 1 | F28: 1 | G28: 0 | H28: 1 | I28: 0 | J28: 0 | K28: 0

Sheet 연령별,유형별
A1: 은평구 등록장애인 연령별, 유형별 현황
B2: =정도별!B3 -> *2025. 6월말 기준
A3: 구분 | B3: 나이 | C3: 합계 | F3: 지체 | I3: 시각 | L3: 청각 | O3: 언어 | R3: 지적 | U3: 뇌병변 | X3: 자폐 | AA3: 정신 | AD3: 신장 | AG3: 심장 | AJ3: 호흡기 | AM3: 간 | AP3: 안면 | AS3: 장루.요루 | AV3: 뇌전증
C4: 합계 | D4: 남성 | E4: 여성 | F4: 소계 | G4: 남성 | H4: 여성 | I4: 소계 | J4: 남성 | K4: 여성 | L4: 소계 | M4: 남성 | N4: 여성 | O4: 소계 | P4: 남성 | Q4: 여성 | R4: 소계 | S4: 남성 | T4: 여성 | U4: 소계 | V4: 남성 | W4: 여성 | X4: 소계 | Y4: 남성 | Z4: 여성 | AA4: 소계 | AB4: 남성 | AC4: 여성 | AD4: 소계 | AE4: 남성 | AF4: 여성 | AG4: 소계 | AH4: 남성 | AI4: 여성 | AJ4: 소계 | AK4: 남성 | AL4: 여성 | AM4: 소계 | AN4: 남성 | AO4: 여성 | AP4: 소계 | AQ4: 남성 | AR4: 여성 | AS4: 소계 | AT4: 남성 | AU4: 여성 | AV4: 소계 | AW4: 남성 | AX4: 여성
A5: 합계 | C5: 21226 | D5: 12347 | E5: 8879 | F5: 8269 | G5: 4512 | H5: 3757 | I5: 2260 | J5: 1325 | K5: 935 | L5: 3352 | M5: 1851 | N5: 1501 | O5: 162 | P5: 118 | Q5: 44 | R5: 1891 | S5: 1241 | T5: 650 | U5: 2069 | V5: 1224 | W5: 845 | X5: 514 | Y5: 427 | Z5: 87 | AA5: 1119 | AB5: 678 | AC5: 441 | AD5: 978 | AE5: 587 | AF5: 391 | AG5: 44 | AH5: 26 | AI5: 18 | AJ5: 114 | AK5: 80 | AL5: 34 | AM5: 170 | AN5: 110 | AO5: 60 | AP5: 24 | AQ5: 14 | AR5: 10 | AS5: 196 | AT5: 122 | AU5: 74 | AV5: 64 | AW5: 32 | AX5: 32
B6: 0 | C6: 7 | D6: 3 | E6: 4 | F6: 0 | G6: 0 | H6: 0 | I6: 0 | J6: 0 | K6: 0 | L6: 2 | M6: 1 | N6: 1 | O6: 0 | P6: 0 | Q6: 0 | R6: 0 | S6: 0 | T6: 0 | U6: 4 | V6: 2 | W6: 2 | X6: 0 | Y6: 0 | Z6: 0 | AA6: 0 | AB6: 0 | AC6: 0 | AD6: 0 | AE6: 0 | AF6: 0 | AG6: 0 | AH6: 0 | AI6: 0 | AJ6: 0 | AK6: 0 | AL6: 0 | AM6: 1 | AN6: 0 | AO6: 1 | AP6: 0 | AQ6: 0 | AR6: 0 | AS6: 0 | AT6: 0 | AU6: 0 | AV6: 0 | AW6: 0 | AX6: 0
A7: 합계 | B7: 1 | C7: 4 | D7: 1 | E7: 3 | F7: 0 | G7: 0 | H7: 0 | I7: 0 | J7: 0 | K7: 0 | L7: 1 | M7: 0 | N7: 1 | O7: 0 | P7: 0 | Q7: 0 | R7: 0 | S7: 0 | T7: 0 | U7: 3 | V7: 1 | W7: 2 | X7: 0 | Y7: 0 | Z7: 0 | AA7: 0 | AB7: 0 | AC7: 0 | AD7: 0 | AE7: 0 | AF7: 0 | AG7: 0 | AH7: 0 | AI7: 0 | AJ7: 0 | AK7: 0 | AL7: 0 | AM7: 0 | AN7: 0 | AO7: 0 | AP7: 0 | AQ7: 0 | AR7: 0 | AS7: 0 | AT7: 0 | AU7: 0 | AV7: 0 | AW7: 0 | AX7: 0
B8: 2 | C8: 13 | D8: 7 | E8: 6 | F8: 0 | G8: 0 | H8: 0 | I8: 0 | J8: 0 | K8: 0 | L8: 2 | M8: 1 | N8: 1 | O8: 1 | P8: 1 | Q8: 0 | R8: 1 | S8: 0 | T8: 1 | U8: 7 | V8: 3 | W8: 4 | X8: 1 | Y8: 1 | Z8: 0 | AA8: 0 | AB8: 0 | AC8: 0 | AD8: 1 | AE8: 1 | AF8: 0 | AG8: 0 | AH8: 0 | AI8: 0 | AJ8: 0 | AK8: 0 | AL8: 0 | AM8: 0 | AN8: 0 | AO8: 0 | AP8: 0 | AQ8: 0 | AR8: 0 | AS8: 0 | AT8: 0 | AU8: 0 | AV8: 0 | AW8: 0 | AX8: 0
B9: 3 | C9: 14 | D9: 9 | E9: 5 | F9: 0 | G9: 0 | H9: 0 | I9: 0 | J9: 0 | K9: 0 | L9: 0 | M9: 0 | N9: 0 | O9: 1 | P9: 0 | Q9: 1 | R9: 4 | S9: 3 | T9: 1 | U9: 4 | V9: 3 | W9: 1 | X9: 5 | Y9: 3 | Z9: 2 | AA9: 0 | AB9: 0 | AC9: 0 | AD9: 0 | AE9: 0 | AF9: 0 | AG9: 0 | AH9: 0 | AI9: 0 | AJ9: 0 | AK9: 0 | AL9: 0 | AM9: 0 | AN9: 0 | AO9: 0 | AP9: 0 | AQ9: 0 | AR9: 0 | AS9: 0 | AT9: 0 | AU9: 0 | AV9: 0 | AW9: 0 | AX9: 0
B10: 4 | C10: 37 | D10: 22 | E10: 15 | F10: 1 | G10: 1 | H10: 0 | I10: 1 | J10: 1 | K10: 0 | L10: 5 | M10: 2 | N10: 3 | O10: 3 | P10: 2 | Q10: 1 | R10: 5 | S10: 2 | T10: 3 | U10: 4 | V10: 1 | W10: 3 | X10: 17 | Y10: 13 | Z10: 4 | AA10: 0 | AB10: 0 | AC10: 0 | AD10: 0 | AE10: 0 | AF10: 0 | AG10: 0 | AH10: 0 | AI10: 0 | AJ10: 0 | AK10: 0 | AL10: 0 | AM10: 0 | AN10: 0 | AO10: 0 | AP10: 0 | AQ10: 0 | AR10: 0 | AS10: 1 | AT10: 0 | AU10: 1 | AV10: 0 | AW10: 0 | AX10: 0
B11: 5 | C11: 44 | D11: 29 | E11: 15 | F11: 0 | G11: 0 | H11: 0 | I11: 1 | J11: 1 | K11: 0 | L11: 0 | M11: 0 | N11: 0 | O11: 1 | P11: 1 | Q11: 0 | R11: 8 | S11: 6 | T11: 2 | U11: 10 | V11: 3 | W11: 7 | X11: 24 | Y11: 18 | Z11: 6 | AA11: 0 | AB11: 0 | AC11: 0 | AD11: 0 | AE11: 0 | AF11: 0 | AG11: 0 | AH11: 0 | AI11: 0 | AJ11: 0 | AK11: 0 | AL11: 0 | AM11: 0 | AN11: 0 | AO11: 0 | AP11: 0 | AQ11: 0 | AR11: 0 | AS11: 0 | AT11: 0 | AU11: 0 | AV11: 0 | AW11: 0 | AX11: 0
B12: 6 | C12: 62 | D12: 39 | E12: 23 | F12: 1 | G12: 0 | H12: 1 | I12: 1 | J12: 1 | K12: 0 | L12: 0 | M12: 0 | N12: 0 | O12: 2 | P12: 1 | Q12: 1 | R12: 13 | S12: 7 | T12: 6 | U12: 10 | V12: 4 | W12: 6 | X12: 35 | Y12: 26 | Z12: 9 | AA12: 0 | AB12: 0 | AC12: 0 | AD12: 0 | AE12: 0 | AF12: 0 | AG12: 0 | AH12: 0 | AI12: 0 | AJ12: 0 | AK12: 0 | AL12: 0 | AM12: 0 | AN12: 0 | AO12: 0 | AP12: 0 | AQ12: 0 | AR12: 0 | AS12: 0 | AT12: 0 | AU12: 0 | AV12: 0 | AW12: 0 | AX12: 0
B13: 7 | C13: 55 | D13: 40 | E13: 15 | F13: 0 | G13: 0 | H13: 0 | I13: 0 | J13: 0 | K13: 0 | L13: 2 | M13: 0 | N13: 2 | O13: 2 | P13: 2 | Q13: 0 | R13: 17 | S13: 11 | T13: 6 | U13: 5 | V13: 3 | W13: 2 | X13: 28 | Y13: 23 | Z13: 5 | AA13: 0 | AB13: 0 | AC13: 0 | AD13: 0 | AE13: 0 | AF13: 0 | AG13: 0 | AH13: 0 | AI13: 0 | AJ13: 0 | AK13: 0 | AL13: 0 | AM13: 0 | AN13: 0 | AO13: 0 | AP13: 0 | AQ13: 0 | AR13: 0 | AS13: 1 | AT13: 1 | AU13: 0 | AV13: 0 | AW13: 0 | AX13: 0
B14: 8 | C14: 68 | D14: 55 | E14: 13 | F14: 0 | G14: 0 | H14: 0 | I14: 1 | J14: 0 | K14: 1 | L14: 3 | M14: 2 | N14: 1 | O14: 1 | P14: 1 | Q14: 0 | R14: 19 | S14: 17 | T14: 2 | U14: 4 | V14: 1 | W14: 3 | X14: 40 | Y14: 34 | Z14: 6 | AA14: 0 | AB14: 0 | AC14: 0 | AD14: 0 | AE14: 0 | AF14: 0 | AG14: 0 | AH14: 0 | AI14: 0 | AJ14: 0 | AK14: 0 | AL14: 0 | AM14: 0 | AN14: 0 | AO14: 0 | AP14: 0 | AQ14: 0 | AR14: 0 | AS14: 0 | AT14: 0 | AU14: 0 | AV14: 0 | AW14: 0 | AX14: 0
B15: 9 | C15: 63 | D15: 42 | E15: 21 | F15: 0 | G15: 0 | H15: 0 | I15: 1 | J15: 1 | K15: 0 | L15: 4 | M15: 0 | N15: 4 | O15: 0 | P15: 0 | Q15: 0 | R15: 26 | S15: 18 | T15: 8 | U15: 9 | V15: 5 | W15: 4 | X15: 23 | Y15: 18 | Z15: 5 | AA15: 0 | AB15: 0 | AC15: 0 | AD15: 0 | AE15: 0 | AF15: 0 | AG15: 0 | AH15: 0 | AI15: 0 | AJ15: 0 | AK15: 0 | AL15: 0 | AM15: 0 | AN15: 0 | AO15: 0 | AP15: 0 | AQ15: 0 | AR15: 0 | AS15: 0 | AT15: 0 | AU15: 0 | AV15: 0 | AW15: 0 | AX15: 0
B16: 10 | C16: 55 | D16: 34 | E16: 21 | F16: 0 | G16: 0 | H16: 0 | I16: 1 | J16: 0 | K16: 1 | L16: 3 | M16: 1 | N16: 2 | O16: 1 | P16: 1 | Q16: 0 | R16: 24 | S16: 12 | T16: 12 | U16: 8 | V16: 6 | W16: 2 | X16: 17 | Y16: 13 | Z16: 4 | AA16: 0 | AB16: 0 | AC16: 0 | AD16: 0 | AE16: 0 | AF16: 0 | AG16: 0 | AH16: 0 | AI16: 0 | AJ16: 0 | AK16: 0 | AL16: 0 | AM16: 1 | AN16: 1 | AO16: 0 | AP16: 0 | AQ16: 0 | AR16: 0 | AS16: 0 | AT16: 0 | AU16: 0 | AV16: 0 | AW16: 0 | AX16: 0
B17: 11 | C17: 56 | D17: 38 | E17: 18 | F17: 0 | G17: 0 | H17: 0 | I17: 1 | J17: 1 | K17: 0 | L17: 2 | M17: 0 | N17: 2 | O17: 1 | P17: 1 | Q17: 0 | R17: 24 | S17: 17 | T17: 7 | U17: 7 | V17: 2 | W17: 5 | X17: 20 | Y17: 16 | Z17: 4 | AA17: 0 | AB17: 0 | AC17: 0 | AD17: 0 | AE17: 0 | AF17: 0 | AG17: 1 | AH17: 1 | AI17: 0 | AJ17: 0 | AK17: 0 | AL17: 0 | AM17: 0 | AN17: 0 | AO17: 0 | AP17: 0 | AQ17: 0 | AR17: 0 | AS17: 0 | AT17: 0 | AU17: 0 | AV17: 0 | AW17: 0 | AX17: 0
B18: 12 | C18: 65 | D18: 40 | E18: 25 | F18: 2 | G18: 1 | H18: 1 | I18: 2 | J18: 2 | K18: 0 | L18: 1 | M18: 0 | N18: 1 | O18: 0 | P18: 0 | Q18: 0 | R18: 27 | S18: 13 | T18: 14 | U18: 10 | V18: 4 | W18: 6 | X18: 23 | Y18: 20 | Z18: 3 | AA18: 0 | AB18: 0 | AC18: 0 | AD18: 0 | AE18: 0 | AF18: 0 | AG18: 0 | AH18: 0 | AI18: 0 | AJ18: 0 | AK18: 0 | AL18: 0 | AM18: 0 | AN18: 0 | AO18: 0 | AP18: 0 | AQ18: 0 | AR18: 0 | AS18: 0 | AT18: 0 | AU18: 0 | AV18: 0 | AW18: 0 | AX18: 0
B19: 13 | C19: 72 | D19: 52 | E19: 20 | F19: 3 | G19: 2 | H19: 1 | I19: 2 | J19: 0 | K19: 2 | L19: 2 | M19: 1 | N19: 1 | O19: 1 | P19: 1 | Q19: 0 | R19: 35 | S19: 25 | T19: 10 | U19: 5 | V19: 3 | W19: 2 | X19: 24 | Y19: 20 | Z19: 4 | AA19: 0 | AB19: 0 | AC19: 0 | AD19: 0 | AE19: 0 | AF19: 0 | AG19: 0 | AH19: 0 | AI19: 0 | AJ19: 0 | AK19: 0 | AL19: 0 | AM19: 0 | AN19: 0 | AO19: 0 | AP19: 0 | AQ19: 0 | AR19: 0 | AS19: 0 | AT19: 0 | AU19: 0 | AV19: 0 | AW19: 0 | AX19: 0
B20: 14 | C20: 65 | D20: 44 | E20: 21 | F20: 2 | G20: 1 | H20: 1 | I20: 1 | J20: 0 | K20: 1 | L20: 0 | M20: 0 | N20: 0 | O20: 1 | P20: 1 | Q20: 0 | R20: 28 | S20: 17 | T20: 11 | U20: 7 | V20: 5 | W20: 2 | X20: 26 | Y20: 20 | Z20: 6 | AA20: 0 | AB20: 0 | AC20: 0 | AD20: 0 | AE20: 0 | AF20: 0 | AG20: 0 | AH20: 0 | AI20: 0 | AJ20: 0 | AK20: 0 | AL20: 0 | AM20: 0 | AN20: 0 | AO20: 0 | AP20: 0 | AQ20: 0 | AR20: 0 | AS20: 0 | AT20: 0 | AU20: 0 | AV20: 0 | AW20: 0 | AX20: 0
B21: 15 | C21: 58 | D21: 42 | E21: 16 | F21: 4 | G21: 4 | H21: 0 | I21: 2 | J21: 1 | K21: 1 | L21: 1 | M21: 1 | N21: 0 | O21: 0 | P21: 0 | Q21: 0 | R21: 28 | S21: 18 | T21: 10 | U21: 4 | V21: 4 | W21: 0 | X21: 16 | Y21: 12 | Z21: 4 | AA21: 0 | AB21: 0 | AC21: 0 | AD21: 0 | AE21: 0 | AF21: 0 | AG21: 1 | AH21: 1 | AI21: 0 | AJ21: 0 | AK21: 0 | AL21: 0 | AM21: 1 | AN21: 1 | AO21: 0 | AP21: 0 | AQ21: 0 | AR21: 0 | AS21: 1 | AT21: 0 | AU21: 1 | AV21: 0 | AW21: 0 | AX21: 0
B22: 16 | C22: 54 | D22: 37 | E22: 17 | F22: 2 | G22: 0 | H22: 2 | I22: 2 | J22: 0 | K22: 2 | L22: 1 | M22: 0 | N22: 1 | O22: 0 | P22: 0 | Q22: 0 | R22: 31 | S22: 24 | T22: 7 | U22: 8 | V22: 5 | W22: 3 | X22: 10 | Y22: 8 | Z22: 2 | AA22: 0 | AB22: 0 | AC22: 0 | AD22: 0 | AE22: 0 | AF22: 0 | AG22: 0 | AH22: 0 | AI22: 0 | AJ22: 0 | AK22: 0 | AL22: 0 | AM22: 0 | AN22: 0 | AO22: 0 | AP22: 0 | AQ22: 0 | AR22: 0 | AS22: 0 | AT22: 0 | AU22: 0 | AV22: 0 | AW22: 0 | AX22: 0
B23: 17 | C23: 48 | D23: 35 | E23: 13 | F23: 1 | G23: 0 | H23: 1 | I23: 1 | J23: 1 | K23: 0 | L23: 1 | M23: 1 | N23: 0 | O23: 0 | P23: 0 | Q23: 0 | R23: 33 | S23: 24 | T23: 9 | U23: 3 | V23: 1 | W23: 2 | X23: 8 | Y23: 7 | Z23: 1 | AA23: 0 | AB23: 0 | AC23: 0 | AD23: 0 | AE23: 0 | AF23: 0 | AG23: 0 | AH23: 0 | AI23: 0 | AJ23: 0 | AK23: 0 | AL23: 0 | AM23: 1 | AN23: 1 | AO23: 0 | AP23: 0 | AQ23: 0 | AR23: 0 | AS23: 0 | AT23: 0 | AU23: 0 | AV23: 0 | AW23: 0 | AX23: 0
B24: 18 | C24: 52 | D24: 30 | E24: 22 | F24: 5 | G24: 3 | H24: 2 | I24: 1 | J24: 1 | K24: 0 | L24: 2 | M24: 0 | N24: 2 | O24: 0 | P24: 0 | Q24: 0 | R24: 32 | S24: 19 | T24: 13 | U24: 4 | V24: 1 | W24: 3 | X24: 7 | Y24: 6 | Z24: 1 | AA24: 0 | AB24: 0 | AC24: 0 | AD24: 0 | AE24: 0 | AF24: 0 | AG24: 0 | AH24: 0 | AI24: 0 | AJ24: 0 | AK24: 0 | AL24: 0 | AM24: 1 | AN24: 0 | AO24: 1 | AP24: 0 | AQ24: 0 | AR24: 0 | AS24: 0 | AT24: 0 | AU24: 0 | AV24: 0 | AW24: 0 | AX24: 0
B25: 19 | C25: 54 | D25: 32 | E25: 22 | F25: 6 | G25: 2 | H25: 4 | I25: 3 | J25: 1 | K25: 2 | L25: 3 | M25: 2 | N25: 1 | O25: 0 | P25: 0 | Q25: 0 | R25: 31 | S25: 19 | T25: 12 | U25: 4 | V25: 2 | W25: 2 | X25: 6 | Y25: 5 | Z25: 1 | AA25: 0 | AB25: 0 | AC25: 0 | AD25: 1 | AE25: 1 | AF25: 0 | AG25: 0 | AH25: 0 | AI25: 0 | AJ25: 0 | AK25: 0 | AL25: 0 | AM25: 0 | AN25: 0 | AO25: 0 | AP25: 0 | AQ25: 0 | AR25: 0 | AS25: 0 | AT25: 0 | AU25: 0 | AV25: 0 | AW25: 0 | AX25: 0
B26: 20 | C26: 80 | D26: 56 | E26: 24 | F26: 7 | G26: 6 | H26: 1 | I26: 0 | J26: 0 | K26: 0 | L26: 4 | M26: 1 | N26: 3 | O26: 1 | P26: 1 | Q26: 0 | R26: 45 | S26: 28 | T26: 17 | U26: 9 | V26: 7 | W26: 2 | X26: 12 | Y26: 12 | Z26: 0 | AA26: 1 | AB26: 1 | AC26: 0 | AD26: 1 | AE26: 0 | AF26: 1 | AG26: 0 | AH26: 0 | AI26: 0 | AJ26: 0 | AK26: 0 | AL26: 0 | AM26: 0 | AN26: 0 | AO26: 0 | AP26: 0 | AQ26: 0 | AR26: 0 | AS26: 0 | AT26: 0 | AU26: 0 | AV26: 0 | AW26: 0 | AX26: 0
B27: 21 | C27: 68 | D27: 38 | E27: 30 | F27: 5 | G27: 2 | H27: 3 | I27: 2 | J27: 2 | K27: 0 | L27: 3 | M27: 0 | N27: 3 | O27: 1 | P27: 1 | Q27: 0 | R27: 40 | S27: 21 | T27: 19 | U27: 6 | V27: 2 | W27: 4 | X27: 6 | Y27: 6 | Z27: 0 | AA27: 0 | AB27: 0 | AC27: 0 | AD27: 1 | AE27: 1 | AF27: 0 | AG27: 2 | AH27: 2 | AI27: 0 | AJ27: 0 | AK27: 0 | AL27: 0 | AM27: 2 | AN27: 1 | AO27: 1 | AP27: 0 | AQ27: 0 | AR27: 0 | AS27: 0 | AT27: 0 | AU27: 0 | AV27: 0 | AW27: 0 | AX27: 0
B28: 22 | C28: 72 | D28: 42 | E28: 30 | F28: 4 | G28: 1 | H28: 3 | I28: 5 | J28: 3 | K28: 2 | L28: 6 | M28: 2 | N28: 4 | O28: 0 | P28: 0 | Q28: 0 | R28: 39 | S28: 27 | T28: 12 | U28: 4 | V28: 1 | W28: 3 | X28: 7 | Y28: 6 | Z28: 1 | AA28: 1 | AB28: 1 | AC28: 0 | AD28: 0 | AE28: 0 | AF28: 0 | AG28: 2 | AH28: 1 | AI28: 1 | AJ28: 0 | AK28: 0 | AL28: 0 | AM28: 4 | AN28: 0 | AO28: 4 | AP28: 0 | AQ28: 0 | AR28: 0 | AS28: 0 | AT28: 0 | AU28: 0 | AV28: 0 | AW28: 0 | AX28: 0
B29: 23 | C29: 86 | D29: 59 | E29: 27 | F29: 10 | G29: 6 | H29: 4 | I29: 6 | J29: 4 | K29: 2 | L29: 5 | M29: 4 | N29: 1 | O29: 0 | P29: 0 | Q29: 0 | R29: 41 | S29: 26 | T29: 15 | U29: 5 | V29: 5 | W29: 0 | X29: 13 | Y29: 12 | Z29: 1 | AA29: 4 | AB29: 2 | AC29: 2 | AD29: 1 | AE29: 0 | AF29: 1 | AG29: 0 | AH29: 0 | AI29: 0 | AJ29: 0 | AK29: 0 | AL29: 0 | AM29: 1 | AN29: 0 | AO29: 1 | AP29: 0 | AQ29: 0 | AR29: 0 | AS29: 0 | AT29: 0 | AU29: 0 | AV29: 0 | AW29: 0 | AX29: 0
B30: 24 | C30: 95 | D30: 57 | E30: 38 | F30: 10 | G30: 3 | H30: 7 | I30: 2 | J30: 1 | K30: 1 | L30: 7 | M30: 3 | N30: 4 | O30: 0 | P30: 0 | Q30: 0 | R30: 44 | S30: 29 | T30: 15 | U30: 6 | V30: 3 | W30: 3 | X30: 15 | Y30: 12 | Z30: 3 | AA30: 4 | AB30: 2 | AC30: 2 | AD30: 1 | AE30: 1 | AF30: 0 | AG30: 3 | AH30: 1 | AI30: 2 | AJ30: 1 | AK30: 1 | AL30: 0 | AM30: 1 | AN30: 1 | AO30: 0 | AP30: 0 | AQ30: 0 | AR30: 0 | AS30: 0 | AT30: 0 | AU30: 0 | AV30: 1 | AW30: 0 | AX30: 1
B31: 25 | C31: 90 | D31: 61 | E31: 29 | F31: 4 | G31: 1 | H31: 3 | I31: 6 | J31: 3 | K31: 3 | L31: 7 | M31: 4 | N31: 3 | O31: 0 | P31: 0 | Q31: 0 | R31: 44 | S31: 31 | T31: 13 | U31: 9 | V31: 7 | W31: 2 | X31: 15 | Y31: 13 | Z31: 2 | AA31: 2 | AB31: 1 | AC31: 1 | AD31: 0 | AE31: 0 | AF31: 0 | AG31: 0 | AH31: 0 | AI31: 0 | AJ31: 0 | AK31: 0 | AL31: 0 | AM31: 2 | AN31: 0 | AO31: 2 | AP31: 0 | AQ31: 0 | AR31: 0 | AS31: 0 | AT31: 0 | AU31: 0 | AV31: 1 | AW31: 1 | AX31: 0
B32: 26 | C32: 96 | D32: 54 | E32: 42 | F32: 13 | G32: 5 | H32: 8 | I32: 9 | J32: 6 | K32: 3 | L32: 5 | M32: 2 | N32: 3 | O32: 2 | P32: 2 | Q32: 0 | R32: 47 | S32: 28 | T32: 19 | U32: 6 | V32: 3 | W32: 3 | X32: 7 | Y32: 6 | Z32: 1 | AA32: 5 | AB32: 1 | AC32: 4 | AD32: 2 | AE32: 1 | AF32: 1 | AG32: 0 | AH32: 0 | AI32: 0 | AJ32: 0 | AK32: 0 | AL32: 0 | AM32: 0 | AN32: 0 | AO32: 0 | AP32: 0 | AQ32: 0 | AR32: 0 | AS32: 0 | AT32: 0 | AU32: 0 | AV32: 0 | AW32: 0 | AX32: 0
B33: 27 | C33: 101 | D33: 58 | E33: 43 | F33: 13 | G33: 5 | H33: 8 | I33: 14 | J33: 9 | K33: 5 | L33: 6 | M33: 4 | N33: 2 | O33: 2 | P33: 2 | Q33: 0 | R33: 44 | S33: 23 | T33: 21 | U33: 8 | V33: 3 | W33: 5 | X33: 9 | Y33: 8 | Z33: 1 | AA33: 5 | AB33: 4 | AC33: 1 | AD33: 0 | AE33: 0 | AF33: 0 | AG33: 0 | AH33: 0 | AI33: 0 | AJ33: 0 | AK33: 0 | AL33: 0 | AM33: 0 | AN33: 0 | AO33: 0 | AP33: 0 | AQ33: 0 | AR33: 0 | AS33: 0 | AT33: 0 | AU33: 0 | AV33: 0 | AW33: 0 | AX33: 0
B34: 28 | C34: 110 | D34: 70 | E34: 40 | F34: 12 | G34: 5 | H34: 7 | I34: 9 | J34: 6 | K34: 3 | L34: 6 | M34: 3 | N34: 3 | O34: 0 | P34: 0 | Q34: 0 | R34: 50 | S34: 35 | T34: 15 | U34: 8 | V34: 6 | W34: 2 | X34: 11 | Y34: 9 | Z34: 2 | AA34: 8 | AB34: 4 | AC34: 4 | AD34: 3 | AE34: 1 | AF34: 2 | AG34: 0 | AH34: 0 | AI34: 0 | AJ34: 0 | AK34: 0 | AL34: 0 | AM34: 1 | AN34: 1 | AO34: 0 | AP34: 0 | AQ34: 0 | AR34: 0 | AS34: 0 | AT34: 0 | AU34: 0 | AV34: 2 | AW34: 0 | AX34: 2
B35: 29 | C35: 98 | D35: 69 | E35: 29 | F35: 14 | G35: 9 | H35: 5 | I35: 9 | J35: 9 | K35: 0 | L35: 4 | M35: 2 | N35: 2 | O35: 0 | P35: 0 | Q35: 0 | R35: 45 | S35: 28 | T35: 17 | U35: 6 | V35: 4 | W35: 2 | X35: 10 | Y35: 9 | Z35: 1 | AA35: 7 | AB35: 6 | AC35: 1 | AD35: 1 | AE35: 1 | AF35: 0 | AG35: 0 | AH35: 0 | AI35: 0 | AJ35: 0 | AK35: 0 | AL35: 0 | AM35: 0 | AN35: 0 | AO35: 0 | AP35: 0 | AQ35: 0 | AR35: 0 | AS35: 2 | AT35: 1 | AU35: 1 | AV35: 0 | AW35: 0 | AX35: 0
B36: 30 | C36: 102 | D36: 62 | E36: 40 | F36: 10 | G36: 5 | H36: 5 | I36: 10 | J36: 6 | K36: 4 | L36: 5 | M36: 3 | N36: 2 | O36: 0 | P36: 0 | Q36: 0 | R36: 47 | S36: 28 | T36: 19 | U36: 11 | V36: 4 | W36: 7 | X36: 11 | Y36: 11 | Z36: 0 | AA36: 3 | AB36: 2 | AC36: 1 | AD36: 3 | AE36: 2 | AF36: 1 | AG36: 0 | AH36: 0 | AI36: 0 | AJ36: 0 | AK36: 0 | AL36: 0 | AM36: 0 | AN36: 0 | AO36: 0 | AP36: 0 | AQ36: 0 | AR36: 0 | AS36: 0 | AT36: 0 | AU36: 0 | AV36: 2 | AW36: 1 | AX36: 1
B37: 31 | C37: 108 | D37: 68 | E37: 40 | F37: 13 | G37: 9 | H37: 4 | I37: 11 | J37: 7 | K37: 4 | L37: 4 | M37: 1 | N37: 3 | O37: 1 | P37: 0 | Q37: 1 | R37: 55 | S37: 35 | T37: 20 | U37: 8 | V37: 7 | W37: 1 | X37: 8 | Y37: 6 | Z37: 2 | AA37: 4 | AB37: 1 | AC37: 3 | AD37: 2 | AE37: 1 | AF37: 1 | AG37: 0 | AH37: 0 | AI37: 0 | AJ37: 0 | AK37: 0 | AL37: 0 | AM37: 0 | AN37: 0 | AO37: 0 | AP37: 1 | AQ37: 1 | AR37: 0 | AS37: 1 | AT37: 0 | AU37: 1 | AV37: 0 | AW37: 0 | AX37: 0
B38: 32 | C38: 134 | D38: 85 | E38: 49 | F38: 21 | G38: 12 | H38: 9 | I38: 11 | J38: 7 | K38: 4 | L38: 8 | M38: 5 | N38: 3 | O38: 2 | P38: 1 | Q38: 1 | R38: 51 | S38: 35 | T38: 16 | U38: 13 | V38: 7 | W38: 6 | X38: 6 | Y38: 6 | Z38: 0 | AA38: 13 | AB38: 9 | AC38: 4 | AD38: 5 | AE38: 3 | AF38: 2 | AG38: 4 | AH38: 0 | AI38: 4 | AJ38: 0 | AK38: 0 | AL38: 0 | AM38: 0 | AN38: 0 | AO38: 0 | AP38: 0 | AQ38: 0 | AR38: 0 | AS38: 0 | AT38: 0 | AU38: 0 | AV38: 0 | AW38: 0 | AX38: 0
B39: 33 | C39: 99 | D39: 68 | E39: 31 | F39: 15 | G39: 11 | H39: 4 | I39: 9 | J39: 7 | K39: 2 | L39: 8 | M39: 5 | N39: 3 | O39: 0 | P39: 0 | Q39: 0 | R39: 35 | S39: 25 | T39: 10 | U39: 7 | V39: 4 | W39: 3 | X39: 11 | Y39: 10 | Z39: 1 | AA39: 9 | AB39: 4 | AC39: 5 | AD39: 4 | AE39: 2 | AF39: 2 | AG39: 1 | AH39: 0 | AI39: 1 | AJ39: 0 | AK39: 0 | AL39: 0 | AM39: 0 | AN39: 0 | AO39: 0 | AP39: 0 | AQ39: 0 | AR39: 0 | AS39: 0 | AT39: 0 | AU39: 0 | AV39: 0 | AW39: 0 | AX39: 0
B40: 34 | C40: 106 | D40: 68 | E40: 38 | F40: 19 | G40: 12 | H40: 7 | I40: 13 | J40: 10 | K40: 3 | L40: 6 | M40: 1 | N40: 5 | O40: 0 | P40: 0 | Q40: 0 | R40: 36 | S40: 24 | T40: 12 | U40: 8 | V40: 6 | W40: 2 | X40: 7 | Y40: 7 | Z40: 0 | AA40: 12 | AB40: 5 | AC40: 7 | AD40: 3 | AE40: 2 | AF40: 1 | AG40: 0 | AH40: 0 | AI40: 0 | AJ40: 0 | AK40: 0 | AL40: 0 | AM40: 1 | AN40: 0 | AO40: 1 | AP40: 0 | AQ40: 0 | AR40: 0 | AS40: 0 | AT40: 0 | AU40: 0 | AV40: 1 | AW40: 1 | AX40: 0
B41: 35 | C41: 85 | D41: 55 | E41: 30 | F41: 19 | G41: 15 | H41: 4 | I41: 10 | J41: 6 | K41: 4 | L41: 4 | M41: 2 | N41: 2 | O41: 1 | P41: 0 | Q41: 1 | R41: 27 | S41: 18 | T41: 9 | U41: 8 | V41: 4 | W41: 4 | X41: 6 | Y41: 4 | Z41: 2 | AA41: 7 | AB41: 3 | AC41: 4 | AD41: 2 | AE41: 2 | AF41: 0 | AG41: 0 | AH41: 0 | AI41: 0 | AJ41: 0 | AK41: 0 | AL41: 0 | AM41: 1 | AN41: 1 | AO41: 0 | AP41: 0 | AQ41: 0 | AR41: 0 | AS41: 0 | AT41: 0 | AU41: 0 | AV41: 0 | AW41: 0 | AX41: 0
B42: 36 | C42: 103 | D42: 73 | E42: 30 | F42: 25 | G42: 16 | H42: 9 | I42: 9 | J42: 7 | K42: 2 | L42: 4 | M42: 2 | N42: 2 | O42: 0 | P42: 0 | Q42: 0 | R42: 37 | S42: 28 | T42: 9 | U42: 11 | V42: 9 | W42: 2 | X42: 7 | Y42: 7 | Z42: 0 | AA42: 4 | AB42: 2 | AC42: 2 | AD42: 4 | AE42: 2 | AF42: 2 | AG42: 0 | AH42: 0 | AI42: 0 | AJ42: 0 | AK42: 0 | AL42: 0 | AM42: 0 | AN42: 0 | AO42: 0 | AP42: 0 | AQ42: 0 | AR42: 0 | AS42: 0 | AT42: 0 | AU42: 0 | AV42: 2 | AW42: 0 | AX42: 2
B43: 37 | C43: 105 | D43: 64 | E43: 41 | F43: 27 | G43: 15 | H43: 12 | I43: 13 | J43: 10 | K43: 3 | L43: 3 | M43: 2 | N43: 1 | O43: 0 | P43: 0 | Q43: 0 | R43: 27 | S43: 16 | T43: 11 | U43: 8 | V43: 5 | W43: 3 | X43: 5 | Y43: 5 | Z43: 0 | AA43: 13 | AB43: 8 | AC43: 5 | AD43: 5 | AE43: 1 | AF43: 4 | AG43: 1 | AH43: 0 | AI43: 1 | AJ43: 0 | AK43: 0 | AL43: 0 | AM43: 0 | AN43: 0 | AO43: 0 | AP43: 1 | AQ43: 1 | AR43: 0 | AS43: 2 | AT43: 1 | AU43: 1 | AV43: 0 | AW43: 0 | AX43: 0
B44: 38 | C44: 109 | D44: 63 | E44: 46 | F44: 30 | G44: 17 | H44: 13 | I44: 17 | J44: 9 | K44: 8 | L44: 3 | M44: 2 | N44: 1 | O44: 1 | P44: 1 | Q44: 0 | R44: 28 | S44: 17 | T44: 11 | U44: 5 | V44: 4 | W44: 1 | X44: 5 | Y44: 5 | Z44: 0 | AA44: 11 | AB44: 6 | AC44: 5 | AD44: 5 | AE44: 2 | AF44: 3 | AG44: 0 | AH44: 0 | AI44: 0 | AJ44: 1 | AK44: 0 | AL44: 1 | AM44: 1 | AN44: 0 | AO44: 1 | AP44: 0 | AQ44: 0 | AR44: 0 | AS44: 1 | AT44: 0 | AU44: 1 | AV44: 1 | AW44: 0 | AX44: 1
B45: 39 | C45: 105 | D45: 60 | E45: 45 | F45: 29 | G45: 18 | H45: 11 | I45: 13 | J45: 7 | K45: 6 | L45: 1 | M45: 1 | N45: 0 | O45: 0 | P45: 0 | Q45: 0 | R45: 22 | S45: 12 | T45: 10 | U45: 10 | V45: 6 | W45: 4 | X45: 3 | Y45: 2 | Z45: 1 | AA45: 15 | AB45: 9 | AC45: 6 | AD45: 8 | AE45: 3 | AF45: 5 | AG45: 0 | AH45: 0 | AI45: 0 | AJ45: 0 | AK45: 0 | AL45: 0 | AM45: 1 | AN45: 1 | AO45: 0 | AP45: 0 | AQ45: 0 | AR45: 0 | AS45: 0 | AT45: 0 | AU45: 0 | AV45: 3 | AW45: 1 | AX45: 2
B46: 40 | C46: 110 | D46: 77 | E46: 33 | F46: 35 | G46: 28 | H46: 7 | I46: 9 | J46: 6 | K46: 3 | L46: 3 | M46: 1 | N46: 2 | O46: 1 | P46: 0 | Q46: 1 | R46: 30 | S46: 21 | T46: 9 | U46: 14 | V46: 9 | W46: 5 | X46: 0 | Y46: 0 | Z46: 0 | AA46: 14 | AB46: 10 | AC46: 4 | AD46: 3 | AE46: 1 | AF46: 2 | AG46: 0 | AH46: 0 | AI46: 0 | AJ46: 0 | AK46: 0 | AL46: 0 | AM46: 0 | AN46: 0 | AO46: 0 | AP46: 0 | AQ46: 0 | AR46: 0 | AS46: 0 | AT46: 0 | AU46: 0 | AV46: 1 | AW46: 1 | AX46: 0
A47: 합계 | B47: 41 | C47: 126 | D47: 87 | E47: 39 | F47: 37 | G47: 31 | H47: 6 | I47: 20 | J47: 18 | K47: 2 | L47: 3 | M47: 2 | N47: 1 | O47: 0 | P47: 0 | Q47: 0 | R47: 25 | S47: 12 | T47: 13 | U47: 14 | V47: 9 | W47: 5 | X47: 1 | Y47: 0 | Z47: 1 | AA47: 13 | AB47: 7 | AC47: 6 | AD47: 7 | AE47: 3 | AF47: 4 | AG47: 2 | AH47: 2 | AI47: 0 | AJ47: 1 | AK47: 1 | AL47: 0 | AM47: 1 | AN47: 0 | AO47: 1 | AP47: 0 | AQ47: 0 | AR47: 0 | AS47: 1 | AT47: 1 | AU47: 0 | AV47: 1 | AW47: 1 | AX47: 0
B48: 42 | C48: 139 | D48: 93 | E48: 46 | F48: 49 | G48: 41 | H48: 8 | I48: 17 | J48: 12 | K48: 5 | L48: 7 | M48: 3 | N48: 4 | O48: 2 | P48: 1 | Q48: 1 | R48: 29 | S48: 17 | T48: 12 | U48: 9 | V48: 6 | W48: 3 | X48: 3 | Y48: 2 | Z48: 1 | AA48: 13 | AB48: 7 | AC48: 6 | AD48: 7 | AE48: 3 | AF48: 4 | AG48: 0 | AH48: 0 | AI48: 0 | AJ48: 0 | AK48: 0 | AL48: 0 | AM48: 0 | AN48: 0 | AO48: 0 | AP48: 0 | AQ48: 0 | AR48: 0 | AS48: 0 | AT48: 0 | AU48: 0 | AV48: 3 | AW48: 1 | AX48: 2
B49: 43 | C49: 166 | D49: 119 | E49: 47 | F49: 49 | G49: 37 | H49: 12 | I49: 26 | J49: 20 | K49: 6 | L49: 10 | M49: 6 | N49: 4 | O49: 1 | P49: 0 | Q49: 1 | R49: 39 | S49: 31 | T49: 8 | U49: 19 | V49: 12 | W49: 7 | X49: 2 | Y49: 2 | Z49: 0 | AA49: 13 | AB49: 6 | AC49: 7 | AD49: 7 | AE49: 5 | AF49: 2 | AG49: 0 | AH49: 0 | AI49: 0 | AJ49: 0 | AK49: 0 | AL49: 0 | AM49: 0 | AN49: 0 | AO49: 0 | AP49: 0 | AQ49: 0 | AR49: 0 | AS49: 0 | AT49: 0 | AU49: 0 | AV49: 0 | AW49: 0 | AX49: 0
B50: 44 | C50: 153 | D50: 98 | E50: 55 | F50: 56 | G50: 40 | H50: 16 | I50: 12 | J50: 7 | K50: 5 | L50: 11 | M50: 6 | N50: 5 | O50: 0 | P50: 0 | Q50: 0 | R50: 26 | S50: 15 | T50: 11 | U50: 14 | V50: 9 | W50: 5 | X50: 0 | Y50: 0 | Z50: 0 | AA50: 19 | AB50: 11 | AC50: 8 | AD50: 11 | AE50: 8 | AF50: 3 | AG50: 0 | AH50: 0 | AI50: 0 | AJ50: 1 | AK50: 0 | AL50: 1 | AM50: 2 | AN50: 2 | AO50: 0 | AP50: 0 | AQ50: 0 | AR50: 0 | AS50: 0 | AT50: 0 | AU50: 0 | AV50: 1 | AW50: 0 | AX50: 1
B51: 45 | C51: 159 | D51: 109 | E51: 50 | F51: 70 | G51: 55 | H51: 15 | I51: 14 | J51: 9 | K51: 5 | L51: 10 | M51: 4 | N51: 6 | O51: 0 | P51: 0 | Q51: 0 | R51: 24 | S51: 14 | T51: 10 | U51: 13 | V51: 11 | W51: 2 | X51: 0 | Y51: 0 | Z51: 0 | AA51: 15 | AB51: 8 | AC51: 7 | AD51: 9 | AE51: 5 | AF51: 4 | AG51: 2 | AH51: 2 | AI51: 0 | AJ51: 0 | AK51: 0 | AL51: 0 | AM51: 1 | AN51: 1 | AO51: 0 | AP51: 0 | AQ51: 0 | AR51: 0 | AS51: 1 | AT51: 0 | AU51: 1 | AV51: 0 | AW51: 0 | AX51: 0
B52: 46 | C52: 154 | D52: 110 | E52: 44 | F52: 57 | G52: 44 | H52: 13 | I52: 23 | J52: 15 | K52: 8 | L52: 5 | M52: 3 | N52: 2 | O52: 2 | P52: 2 | Q52: 0 | R52: 24 | S52: 17 | T52: 7 | U52: 13 | V52: 8 | W52: 5 | X52: 0 | Y52: 0 | Z52: 0 | AA52: 21 | AB52: 14 | AC52: 7 | AD52: 7 | AE52: 6 | AF52: 1 | AG52: 0 | AH52: 0 | AI52: 0 | AJ52: 0 | AK52: 0 | AL52: 0 | AM52: 0 | AN52: 0 | AO52: 0 | AP52: 1 | AQ52: 0 | AR52: 1 | AS52: 0 | AT52: 0 | AU52: 0 | AV52: 1 | AW52: 1 | AX52: 0
B53: 47 | C53: 166 | D53: 121 | E53: 45 | F53: 50 | G53: 41 | H53: 9 | I53: 17 | J53: 10 | K53: 7 | L53: 5 | M53: 1 | N53: 4 | O53: 1 | P53: 1 | Q53: 0 | R53: 40 | S53: 23 | T53: 17 | U53: 14 | V53: 11 | W53: 3 | X53: 0 | Y53: 0 | Z53: 0 | AA53: 27 | AB53: 23 | AC53: 4 | AD53: 7 | AE53: 6 | AF53: 1 | AG53: 0 | AH53: 0 | AI53: 0 | AJ53: 1 | AK53: 1 | AL53: 0 | AM53: 2 | AN53: 2 | AO53: 0 | AP53: 1 | AQ53: 1 | AR53: 0 | AS53: 0 | AT53: 0 | AU53: 0 | AV53: 1 | AW53: 1 | AX53: 0
B54: 48 | C54: 193 | D54: 134 | E54: 59 | F54: 79 | G54: 62 | H54: 17 | I54: 24 | J54: 11 | K54: 13 | L54: 10 | M54: 3 | N54: 7 | O54: 0 | P54: 0 | Q54: 0 | R54: 35 | S54: 28 | T54: 7 | U54: 15 | V54: 9 | W54: 6 | X54: 2 | Y54: 2 | Z54: 0 | AA54: 17 | AB54: 12 | AC54: 5 | AD54: 6 | AE54: 4 | AF54: 2 | AG54: 0 | AH54: 0 | AI54: 0 | AJ54: 1 | AK54: 1 | AL54: 0 | AM54: 1 | AN54: 0 | AO54: 1 | AP54: 1 | AQ54: 1 | AR54: 0 | AS54: 1 | AT54: 1 | AU54: 0 | AV54: 1 | AW54: 0 | AX54: 1
B55: 49 | C55: 217 | D55: 147 | E55: 70 | F55: 69 | G55: 59 | H55: 10 | I55: 26 | J55: 21 | K55: 5 | L55: 11 | M55: 3 | N55: 8 | O55: 5 | P55: 2 | Q55: 3 | R55: 27 | S55: 15 | T55: 12 | U55: 26 | V55: 15 | W55: 11 | X55: 1 | Y55: 1 | Z55: 0 | AA55: 33 | AB55: 18 | AC55: 15 | AD55: 12 | AE55: 10 | AF55: 2 | AG55: 0 | AH55: 0 | AI55: 0 | AJ55: 0 | AK55: 0 | AL55: 0 | AM55: 2 | AN55: 2 | AO55: 0 | AP55: 0 | AQ55: 0 | AR55: 0 | AS55: 2 | AT55: 1 | AU55: 1 | AV55: 3 | AW55: 0 | AX55: 3
B56: 50 | C56: 247 | D56: 161 | E56: 86 | F56: 79 | G56: 55 | H56: 24 | I56: 37 | J56: 21 | K56: 16 | L56: 11 | M56: 4 | N56: 7 | O56: 6 | P56: 5 | Q56: 1 | R56: 28 | S56: 20 | T56: 8 | U56: 29 | V56: 19 | W56: 10 | X56: 0 | Y56: 0 | Z56: 0 | AA56: 34 | AB56: 22 | AC56: 12 | AD56: 14 | AE56: 9 | AF56: 5 | AG56: 1 | AH56: 1 | AI56: 0 | AJ56: 1 | AK56: 1 | AL56: 0 | AM56: 2 | AN56: 2 | AO56: 0 | AP56: 2 | AQ56: 0 | AR56: 2 | AS56: 0 | AT56: 0 | AU56: 0 | AV56: 3 | AW56: 2 | AX56: 1
B57: 51 | C57: 258 | D57: 191 | E57: 67 | F57: 97 | G57: 80 | H57: 17 | I57: 34 | J57: 27 | K57: 7 | L57: 10 | M57: 5 | N57: 5 | O57: 3 | P57: 1 | Q57: 2 | R57: 27 | S57: 21 | T57: 6 | U57: 26 | V57: 18 | W57: 8 | X57: 1 | Y57: 1 | Z57: 0 | AA57: 40 | AB57: 23 | AC57: 17 | AD57: 11 | AE57: 10 | AF57: 1 | AG57: 1 | AH57: 0 | AI57: 1 | AJ57: 0 | AK57: 0 | AL57: 0 | AM57: 2 | AN57: 1 | AO57: 1 | AP57: 0 | AQ57: 0 | AR57: 0 | AS57: 1 | AT57: 1 | AU57: 0 | AV57: 5 | AW57: 3 | AX57: 2
B58: 52 | C58: 291 | D58: 193 | E58: 98 | F58: 103 | G58: 78 | H58: 25 | I58: 23 | J58: 16 | K58: 7 | L58: 18 | M58: 10 | N58: 8 | O58: 2 | P58: 2 | Q58: 0 | R58: 43 | S58: 30 | T58: 13 | U58: 29 | V58: 21 | W58: 8 | X58: 0 | Y58: 0 | Z58: 0 | AA58: 38 | AB58: 17 | AC58: 21 | AD58: 22 | AE58: 13 | AF58: 9 | AG58: 0 | AH58: 0 | AI58: 0 | AJ58: 3 | AK58: 1 | AL58: 2 | AM58: 3 | AN58: 1 | AO58: 2 | AP58: 3 | AQ58: 1 | AR58: 2 | AS58: 2 | AT58: 2 | AU58: 0 | AV58: 2 | AW58: 1 | AX58: 1
B59: 53 | C59: 284 | D59: 185 | E59: 99 | F59: 105 | G59: 74 | H59: 31 | I59: 36 | J59: 22 | K59: 14 | L59: 12 | M59: 6 | N59: 6 | O59: 1 | P59: 1 | Q59: 0 | R59: 27 | S59: 17 | T59: 10 | U59: 24 | V59: 18 | W59: 6 | X59: 0 | Y59: 0 | Z59: 0 | AA59: 47 | AB59: 26 | AC59: 21 | AD59: 22 | AE59: 15 | AF59: 7 | AG59: 2 | AH59: 1 | AI59: 1 | AJ59: 0 | AK59: 0 | AL59: 0 | AM59: 7 | AN59: 5 | AO59: 2 | AP59: 0 | AQ59: 0 | AR59: 0 | AS59: 1 | AT59: 0 | AU59: 1 | AV59: 0 | AW59: 0 | AX59: 0
B60: 54 | C60: 292 | D60: 194 | E60: 98 | F60: 123 | G60: 88 | H60: 35 | I60: 31 | J60: 23 | K60: 8 | L60: 8 | M60: 3 | N60: 5 | O60: 1 | P60: 1 | Q60: 0 | R60: 27 | S60: 20 | T60: 7 | U60: 29 | V60: 19 | W60: 10 | X60: 0 | Y60: 0 | Z60: 0 | AA60: 36 | AB60: 22 | AC60: 14 | AD60: 23 | AE60: 12 | AF60: 11 | AG60: 0 | AH60: 0 | AI60: 0 | AJ60: 0 | AK60: 0 | AL60: 0 | AM60: 4 | AN60: 3 | AO60: 1 | AP60: 0 | AQ60: 0 | AR60: 0 | AS60: 4 | AT60: 2 | AU60: 2 | AV60: 6 | AW60: 1 | AX60: 5
B61: 55 | C61: 339 | D61: 236 | E61: 103 | F61: 139 | G61: 103 | H61: 36 | I61: 50 | J61: 30 | K61: 20 | L61: 16 | M61: 11 | N61: 5 | O61: 3 | P61: 1 | Q61: 2 | R61: 18 | S61: 13 | T61: 5 | U61: 32 | V61: 24 | W61: 8 | X61: 0 | Y61: 0 | Z61: 0 | AA61: 44 | AB61: 30 | AC61: 14 | AD61: 27 | AE61: 18 | AF61: 9 | AG61: 1 | AH61: 1 | AI61: 0 | AJ61: 2 | AK61: 1 | AL61: 1 | AM61: 6 | AN61: 4 | AO61: 2 | AP61: 0 | AQ61: 0 | AR61: 0 | AS61: 1 | AT61: 0 | AU61: 1 | AV61: 0 | AW61: 0 | AX61: 0
B62: 56 | C62: 328 | D62: 217 | E62: 111 | F62: 147 | G62: 110 | H62: 37 | I62: 34 | J62: 20 | K62: 14 | L62: 21 | M62: 11 | N62: 10 | O62: 3 | P62: 2 | Q62: 1 | R62: 16 | S62: 9 | T62: 7 | U62: 28 | V62: 16 | W62: 12 | X62: 0 | Y62: 0 | Z62: 0 | AA62: 48 | AB62: 29 | AC62: 19 | AD62: 22 | AE62: 14 | AF62: 8 | AG62: 1 | AH62: 0 | AI62: 1 | AJ62: 0 | AK62: 0 | AL62: 0 | AM62: 5 | AN62: 5 | AO62: 0 | AP62: 0 | AQ62: 0 | AR62: 0 | AS62: 2 | AT62: 1 | AU62: 1 | AV62: 1 | AW62: 0 | AX62: 1
B63: 57 | C63: 348 | D63: 239 | E63: 109 | F63: 152 | G63: 107 | H63: 45 | I63: 38 | J63: 24 | K63: 14 | L63: 24 | M63: 14 | N63: 10 | O63: 6 | P63: 4 | Q63: 2 | R63: 18 | S63: 14 | T63: 4 | U63: 28 | V63: 22 | W63: 6 | X63: 0 | Y63: 0 | Z63: 0 | AA63: 49 | AB63: 31 | AC63: 18 | AD63: 23 | AE63: 16 | AF63: 7 | AG63: 0 | AH63: 0 | AI63: 0 | AJ63: 1 | AK63: 0 | AL63: 1 | AM63: 3 | AN63: 3 | AO63: 0 | AP63: 1 | AQ63: 1 | AR63: 0 | AS63: 2 | AT63: 0 | AU63: 2 | AV63: 3 | AW63: 3 | AX63: 0
B64: 58 | C64: 325 | D64: 205 | E64: 120 | F64: 132 | G64: 87 | H64: 45 | I64: 44 | J64: 27 | K64: 17 | L64: 23 | M64: 14 | N64: 9 | O64: 4 | P64: 3 | Q64: 1 | R64: 20 | S64: 14 | T64: 6 | U64: 33 | V64: 21 | W64: 12 | X64: 0 | Y64: 0 | Z64: 0 | AA64: 30 | AB64: 15 | AC64: 15 | AD64: 26 | AE64: 13 | AF64: 13 | AG64: 2 | AH64: 2 | AI64: 0 | AJ64: 2 | AK64: 2 | AL64: 0 | AM64: 6 | AN64: 4 | AO64: 2 | AP64: 0 | AQ64: 0 | AR64: 0 | AS64: 3 | AT64: 3 | AU64: 0 | AV64: 0 | AW64: 0 | AX64: 0
B65: 59 | C65: 330 | D65: 222 | E65: 108 | F65: 147 | G65: 106 | H65: 41 | I65: 43 | J65: 24 | K65: 19 | L65: 31 | M65: 17 | N65: 14 | O65: 2 | P65: 2 | Q65: 0 | R65: 11 | S65: 6 | T65: 5 | U65: 32 | V65: 21 | W65: 11 | X65: 0 | Y65: 0 | Z65: 0 | AA65: 32 | AB65: 20 | AC65: 12 | AD65: 21 | AE65: 16 | AF65: 5 | AG65: 0 | AH65: 0 | AI65: 0 | AJ65: 1 | AK65: 1 | AL65: 0 | AM65: 8 | AN65: 7 | AO65: 1 | AP65: 0 | AQ65: 0 | AR65: 0 | AS65: 2 | AT65: 2 | AU65: 0 | AV65: 0 | AW65: 0 | AX65: 0
B66: 60 | C66: 370 | D66: 254 | E66: 116 | F66: 170 | G66: 117 | H66: 53 | I66: 44 | J66: 32 | K66: 12 | L66: 30 | M66: 21 | N66: 9 | O66: 3 | P66: 2 | Q66: 1 | R66: 14 | S66: 8 | T66: 6 | U66: 42 | V66: 34 | W66: 8 | X66: 0 | Y66: 0 | Z66: 0 | AA66: 26 | AB66: 15 | AC66: 11 | AD66: 30 | AE66: 18 | AF66: 12 | AG66: 2 | AH66: 1 | AI66: 1 | AJ66: 1 | AK66: 0 | AL66: 1 | AM66: 4 | AN66: 3 | AO66: 1 | AP66: 0 | AQ66: 0 | AR66: 0 | AS66: 4 | AT66: 3 | AU66: 1 | AV66: 0 | AW66: 0 | AX66: 0
B67: 61 | C67: 413 | D67: 284 | E67: 129 | F67: 211 | G67: 153 | H67: 58 | I67: 51 | J67: 35 | K67: 16 | L67: 26 | M67: 17 | N67: 9 | O67: 3 | P67: 3 | Q67: 0 | R67: 16 | S67: 15 | T67: 1 | U67: 36 | V67: 22 | W67: 14 | X67: 0 | Y67: 0 | Z67: 0 | AA67: 30 | AB67: 15 | AC67: 15 | AD67: 26 | AE67: 15 | AF67: 11 | AG67: 1 | AH67: 0 | AI67: 1 | AJ67: 1 | AK67: 1 | AL67: 0 | AM67: 8 | AN67: 5 | AO67: 3 | AP67: 1 | AQ67: 0 | AR67: 1 | AS67: 2 | AT67: 2 | AU67: 0 | AV67: 1 | AW67: 1 | AX67: 0
B68: 62 | C68: 397 | D68: 284 | E68: 113 | F68: 177 | G68: 122 | H68: 55 | I68: 51 | J68: 36 | K68: 15 | L68: 37 | M68: 25 | N68: 12 | O68: 4 | P68: 4 | Q68: 0 | R68: 17 | S68: 14 | T68: 3 | U68: 36 | V68: 29 | W68: 7 | X68: 0 | Y68: 0 | Z68: 0 | AA68: 36 | AB68: 27 | AC68: 9 | AD68: 20 | AE68: 14 | AF68: 6 | AG68: 2 | AH68: 2 | AI68: 0 | AJ68: 5 | AK68: 2 | AL68: 3 | AM68: 5 | AN68: 3 | AO68: 2 | AP68: 0 | AQ68: 0 | AR68: 0 | AS68: 3 | AT68: 3 | AU68: 0 | AV68: 4 | AW68: 3 | AX68: 1
B69: 63 | C69: 505 | D69: 318 | E69: 187 | F69: 237 | G69: 153 | H69: 84 | I69: 58 | J69: 34 | K69: 24 | L69: 51 | M69: 29 | N69: 22 | O69: 3 | P69: 3 | Q69: 0 | R69: 17 | S69: 12 | T69: 5 | U69: 56 | V69: 32 | W69: 24 | X69: 0 | Y69: 0 | Z69: 0 | AA69: 33 | AB69: 23 | AC69: 10 | AD69: 29 | AE69: 19 | AF69: 10 | AG69: 1 | AH69: 1 | AI69: 0 | AJ69: 0 | AK69: 0 | AL69: 0 | AM69: 8 | AN69: 5 | AO69: 3 | AP69: 1 | AQ69: 0 | AR69: 1 | AS69: 8 | AT69: 4 | AU69: 4 | AV69: 3 | AW69: 3 | AX69: 0
B70: 64 | C70: 546 | D70: 354 | E70: 192 | F70: 257 | G70: 175 | H70: 82 | I70: 57 | J70: 37 | K70: 20 | L70: 56 | M70: 31 | N70: 25 | O70: 10 | P70: 8 | Q70: 2 | R70: 14 | S70: 11 | T70: 3 | U70: 45 | V70: 31 | W70: 14 | X70: 0 | Y70: 0 | Z70: 0 | AA70: 44 | AB70: 27 | AC70: 17 | AD70: 34 | AE70: 19 | AF70: 15 | AG70: 2 | AH70: 2 | AI70: 0 | AJ70: 8 | AK70: 4 | AL70: 4 | AM70: 11 | AN70: 6 | AO70: 5 | AP70: 0 | AQ70: 0 | AR70: 0 | AS70: 7 | AT70: 2 | AU70: 5 | AV70: 1 | AW70: 1 | AX70: 0
B71: 65 | C71: 517 | D71: 343 | E71: 174 | F71: 241 | G71: 164 | H71: 77 | I71: 49 | J71: 38 | K71: 11 | L71: 63 | M71: 31 | N71: 32 | O71: 2 | P71: 0 | Q71: 2 | R71: 17 | S71: 10 | T71: 7 | U71: 59 | V71: 44 | W71: 15 | X71: 0 | Y71: 0 | Z71: 0 | AA71: 39 | AB71: 24 | AC71: 15 | AD71: 30 | AE71: 19 | AF71: 11 | AG71: 0 | AH71: 0 | AI71: 0 | AJ71: 4 | AK71: 3 | AL71: 1 | AM71: 6 | AN71: 4 | AO71: 2 | AP71: 1 | AQ71: 1 | AR71: 0 | AS71: 6 | AT71: 5 | AU71: 1 | AV71: 0 | AW71: 0 | AX71: 0
B72: 66 | C72: 470 | D72: 284 | E72: 186 | F72: 230 | G72: 136 | H72: 94 | I72: 48 | J72: 28 | K72: 20 | L72: 55 | M72: 37 | N72: 18 | O72: 5 | P72: 2 | Q72: 3 | R72: 4 | S72: 2 | T72: 2 | U72: 66 | V72: 40 | W72: 26 | X72: 0 | Y72: 0 | Z72: 0 | AA72: 18 | AB72: 12 | AC72: 6 | AD72: 30 | AE72: 17 | AF72: 13 | AG72: 1 | AH72: 1 | AI72: 0 | AJ72: 5 | AK72: 3 | AL72: 2 | AM72: 3 | AN72: 2 | AO72: 1 | AP72: 3 | AQ72: 3 | AR72: 0 | AS72: 2 | AT72: 1 | AU72: 1 | AV72: 0 | AW72: 0 | AX72: 0
B73: 67 | C73: 464 | D73: 280 | E73: 184 | F73: 232 | G73: 137 | H73: 95 | I73: 44 | J73: 25 | K73: 19 | L73: 55 | M73: 35 | N73: 20 | O73: 2 | P73: 1 | Q73: 1 | R73: 12 | S73: 8 | T73: 4 | U73: 44 | V73: 29 | W73: 15 | X73: 0 | Y73: 0 | Z73: 0 | AA73: 27 | AB73: 17 | AC73: 10 | AD73: 30 | AE73: 16 | AF73: 14 | AG73: 1 | AH73: 1 | AI73: 0 | AJ73: 6 | AK73: 2 | AL73: 4 | AM73: 3 | AN73: 3 | AO73: 0 | AP73: 1 | AQ73: 1 | AR73: 0 | AS73: 6 | AT73: 4 | AU73: 2 | AV73: 1 | AW73: 1 | AX73: 0
B74: 68 | C74: 477 | D74: 286 | E74: 191 | F74: 235 | G74: 136 | H74: 99 | I74: 47 | J74: 31 | K74: 16 | L74: 58 | M74: 25 | N74: 33 | O74: 4 | P74: 3 | Q74: 1 | R74: 9 | S74: 6 | T74: 3 | U74: 51 | V74: 33 | W74: 18 | X74: 0 | Y74: 0 | Z74: 0 | AA74: 22 | AB74: 19 | AC74: 3 | AD74: 33 | AE74: 20 | AF74: 13 | AG74: 2 | AH74: 1 | AI74: 1 | AJ74: 7 | AK74: 6 | AL74: 1 | AM74: 4 | AN74: 3 | AO74: 1 | AP74: 0 | AQ74: 0 | AR74: 0 | AS74: 2 | AT74: 1 | AU74: 1 | AV74: 3 | AW74: 2 | AX74: 1
B75: 69 | C75: 519 | D75: 303 | E75: 216 | F75: 251 | G75: 143 | H75: 108 | I75: 54 | J75: 30 | K75: 24 | L75: 64 | M75: 35 | N75: 29 | O75: 3 | P75: 2 | Q75: 1 | R75: 8 | S75: 3 | T75: 5 | U75: 62 | V75: 42 | W75: 20 | X75: 0 | Y75: 0 | Z75: 0 | AA75: 24 | AB75: 14 | AC75: 10 | AD75: 33 | AE75: 21 | AF75: 12 | AG75: 1 | AH75: 0 | AI75: 1 | AJ75: 7 | AK75: 5 | AL75: 2 | AM75: 4 | AN75: 4 | AO75: 0 | AP75: 0 | AQ75: 0 | AR75: 0 | AS75: 7 | AT75: 3 | AU75: 4 | AV75: 1 | AW75: 1 | AX75: 0
B76: 70 | C76: 490 | D76: 268 | E76: 222 | F76: 258 | G76: 128 | H76: 130 | I76: 40 | J76: 26 | K76: 14 | L76: 66 | M76: 42 | N76: 24 | O76: 4 | P76: 4 | Q76: 0 | R76: 3 | S76: 3 | T76: 0 | U76: 56 | V76: 29 | W76: 27 | X76: 0 | Y76: 0 | Z76: 0 | AA76: 15 | AB76: 5 | AC76: 10 | AD76: 27 | AE76: 19 | AF76: 8 | AG76: 0 | AH76: 0 | AI76: 0 | AJ76: 5 | AK76: 3 | AL76: 2 | AM76: 7 | AN76: 4 | AO76: 3 | AP76: 0 | AQ76: 0 | AR76: 0 | AS76: 8 | AT76: 5 | AU76: 3 | AV76: 1 | AW76: 0 | AX76: 1
B77: 71 | C77: 492 | D77: 288 | E77: 204 | F77: 236 | G77: 122 | H77: 114 | I77: 59 | J77: 30 | K77: 29 | L77: 79 | M77: 51 | N77: 28 | O77: 5 | P77: 5 | Q77: 0 | R77: 2 | S77: 1 | T77: 1 | U77: 50 | V77: 39 | W77: 11 | X77: 0 | Y77: 0 | Z77: 0 | AA77: 20 | AB77: 14 | AC77: 6 | AD77: 28 | AE77: 18 | AF77: 10 | AG77: 0 | AH77: 0 | AI77: 0 | AJ77: 3 | AK77: 2 | AL77: 1 | AM77: 5 | AN77: 2 | AO77: 3 | AP77: 0 | AQ77: 0 | AR77: 0 | AS77: 5 | AT77: 4 | AU77: 1 | AV77: 0 | AW77: 0 | AX77: 0
B78: 72 | C78: 476 | D78: 267 | E78: 209 | F78: 229 | G78: 106 | H78: 123 | I78: 54 | J78: 32 | K78: 22 | L78: 79 | M78: 50 | N78: 29 | O78: 3 | P78: 3 | Q78: 0 | R78: 7 | S78: 6 | T78: 1 | U78: 58 | V78: 40 | W78: 18 | X78: 0 | Y78: 0 | Z78: 0 | AA78: 10 | AB78: 6 | AC78: 4 | AD78: 24 | AE78: 16 | AF78: 8 | AG78: 0 | AH78: 0 | AI78: 0 | AJ78: 1 | AK78: 1 | AL78: 0 | AM78: 5 | AN78: 4 | AO78: 1 | AP78: 1 | AQ78: 0 | AR78: 1 | AS78: 5 | AT78: 3 | AU78: 2 | AV78: 0 | AW78: 0 | AX78: 0
B79: 73 | C79: 439 | D79: 226 | E79: 213 | F79: 216 | G79: 98 | H79: 118 | I79: 41 | J79: 21 | K79: 20 | L79: 78 | M79: 49 | N79: 29 | O79: 5 | P79: 5 | Q79: 0 | R79: 8 | S79: 6 | T79: 2 | U79: 47 | V79: 22 | W79: 25 | X79: 0 | Y79: 0 | Z79: 0 | AA79: 11 | AB79: 5 | AC79: 6 | AD79: 23 | AE79: 12 | AF79: 11 | AG79: 0 | AH79: 0 | AI79: 0 | AJ79: 3 | AK79: 3 | AL79: 0 | AM79: 2 | AN79: 2 | AO79: 0 | AP79: 1 | AQ79: 1 | AR79: 0 | AS79: 4 | AT79: 2 | AU79: 2 | AV79: 0 | AW79: 0 | AX79: 0
B80: 74 | C80: 566 | D80: 317 | E80: 249 | F80: 250 | G80: 120 | H80: 130 | I80: 72 | J80: 34 | K80: 38 | L80: 110 | M80: 76 | N80: 34 | O80: 4 | P80: 2 | Q80: 2 | R80: 5 | S80: 5 | T80: 0 | U80: 60 | V80: 37 | W80: 23 | X80: 0 | Y80: 0 | Z80: 0 | AA80: 15 | AB80: 11 | AC80: 4 | AD80: 34 | AE80: 20 | AF80: 14 | AG80: 0 | AH80: 0 | AI80: 0 | AJ80: 7 | AK80: 6 | AL80: 1 | AM80: 4 | AN80: 4 | AO80: 0 | AP80: 0 | AQ80: 0 | AR80: 0 | AS80: 5 | AT80: 2 | AU80: 3 | AV80: 0 | AW80: 0 | AX80: 0
B81: 75 | C81: 477 | D81: 240 | E81: 237 | F81: 230 | G81: 99 | H81: 131 | I81: 61 | J81: 36 | K81: 25 | L81: 94 | M81: 55 | N81: 39 | O81: 2 | P81: 2 | Q81: 0 | R81: 2 | S81: 1 | T81: 1 | U81: 49 | V81: 25 | W81: 24 | X81: 0 | Y81: 0 | Z81: 0 | AA81: 9 | AB81: 6 | AC81: 3 | AD81: 21 | AE81: 10 | AF81: 11 | AG81: 0 | AH81: 0 | AI81: 0 | AJ81: 4 | AK81: 4 | AL81: 0 | AM81: 3 | AN81: 2 | AO81: 1 | AP81: 0 | AQ81: 0 | AR81: 0 | AS81: 0 | AT81: 0 | AU81: 0 | AV81: 2 | AW81: 0 | AX81: 2
B82: 76 | C82: 513 | D82: 262 | E82: 251 | F82: 242 | G82: 114 | H82: 128 | I82: 62 | J82: 29 | K82: 33 | L82: 115 | M82: 71 | N82: 44 | O82: 6 | P82: 5 | Q82: 1 | R82: 1 | S82: 0 | T82: 1 | U82: 47 | V82: 23 | W82: 24 | X82: 0 | Y82: 0 | Z82: 0 | AA82: 7 | AB82: 3 | AC82: 4 | AD82: 14 | AE82: 7 | AF82: 7 | AG82: 1 | AH82: 0 | AI82: 1 | AJ82: 6 | AK82: 4 | AL82: 2 | AM82: 3 | AN82: 1 | AO82: 2 | AP82: 0 | AQ82: 0 | AR82: 0 | AS82: 9 | AT82: 5 | AU82: 4 | AV82: 0 | AW82: 0 | AX82: 0
B83: 77 | C83: 586 | D83: 306 | E83: 280 | F83: 276 | G83: 121 | H83: 155 | I83: 79 | J83: 43 | K83: 36 | L83: 128 | M83: 81 | N83: 47 | O83: 3 | P83: 1 | Q83: 2 | R83: 2 | S83: 1 | T83: 1 | U83: 59 | V83: 33 | W83: 26 | X83: 0 | Y83: 0 | Z83: 0 | AA83: 3 | AB83: 0 | AC83: 3 | AD83: 20 | AE83: 16 | AF83: 4 | AG83: 0 | AH83: 0 | AI83: 0 | AJ83: 3 | AK83: 2 | AL83: 1 | AM83: 2 | AN83: 1 | AO83: 1 | AP83: 0 | AQ83: 0 | AR83: 0 | AS83: 11 | AT83: 7 | AU83: 4 | AV83: 0 | AW83: 0 | AX83: 0
B84: 78 | C84: 422 | D84: 217 | E84: 205 | F84: 199 | G84: 82 | H84: 117 | I84: 54 | J84: 26 | K84: 28 | L84: 96 | M84: 69 | N84: 27 | O84: 3 | P84: 3 | Q84: 0 | R84: 0 | S84: 0 | T84: 0 | U84: 40 | V84: 20 | W84: 20 | X84: 0 | Y84: 0 | Z84: 0 | AA84: 6 | AB84: 5 | AC84: 1 | AD84: 14 | AE84: 6 | AF84: 8 | AG84: 0 | AH84: 0 | AI84: 0 | AJ84: 5 | AK84: 4 | AL84: 1 | AM84: 2 | AN84: 1 | AO84: 1 | AP84: 0 | AQ84: 0 | AR84: 0 | AS84: 3 | AT84: 1 | AU84: 2 | AV84: 0 | AW84: 0 | AX84: 0
B85: 79 | C85: 446 | D85: 219 | E85: 227 | F85: 197 | G85: 80 | H85: 117 | I85: 51 | J85: 30 | K85: 21 | L85: 119 | M85: 66 | N85: 53 | O85: 4 | P85: 3 | Q85: 1 | R85: 1 | S85: 0 | T85: 1 | U85: 48 | V85: 20 | W85: 28 | X85: 0 | Y85: 0 | Z85: 0 | AA85: 1 | AB85: 1 | AC85: 0 | AD85: 10 | AE85: 6 | AF85: 4 | AG85: 1 | AH85: 0 | AI85: 1 | AJ85: 7 | AK85: 6 | AL85: 1 | AM85: 0 | AN85: 0 | AO85: 0 | AP85: 1 | AQ85: 1 | AR85: 0 | AS85: 6 | AT85: 6 | AU85: 0 | AV85: 0 | AW85: 0 | AX85: 0
B86: 80 | C86: 476 | D86: 225 | E86: 251 | F86: 204 | G86: 76 | H86: 128 | I86: 58 | J86: 29 | K86: 29 | L86: 135 | M86: 72 | N86: 63 | O86: 2 | P86: 2 | Q86: 0 | R86: 1 | S86: 1 | T86: 0 | U86: 46 | V86: 25 | W86: 21 | X86: 0 | Y86: 0 | Z86: 0 | AA86: 3 | AB86: 3 | AC86: 0 | AD86: 18 | AE86: 12 | AF86: 6 | AG86: 0 | AH86: 0 | AI86: 0 | AJ86: 1 | AK86: 0 | AL86: 1 | AM86: 1 | AN86: 0 | AO86: 1 | AP86: 1 | AQ86: 1 | AR86: 0 | AS86: 5 | AT86: 4 | AU86: 1 | AV86: 1 | AW86: 0 | AX86: 1
B87: 81 | C87: 535 | D87: 236 | E87: 299 | F87: 231 | G87: 65 | H87: 166 | I87: 58 | J87: 29 | K87: 29 | L87: 176 | M87: 107 | N87: 69 | O87: 3 | P87: 2 | Q87: 1 | R87: 0 | S87: 0 | T87: 0 | U87: 35 | V87: 16 | W87: 19 | X87: 0 | Y87: 0 | Z87: 0 | AA87: 2 | AB87: 2 | AC87: 0 | AD87: 16 | AE87: 6 | AF87: 10 | AG87: 0 | AH87: 0 | AI87: 0 | AJ87: 3 | AK87: 3 | AL87: 0 | AM87: 1 | AN87: 0 | AO87: 1 | AP87: 1 | AQ87: 0 | AR87: 1 | AS87: 9 | AT87: 6 | AU87: 3 | AV87: 0 | AW87: 0 | AX87: 0
B88: 82 | C88: 535 | D88: 251 | E88: 284 | F88: 229 | G88: 79 | H88: 150 | I88: 60 | J88: 27 | K88: 33 | L88: 154 | M88: 94 | N88: 60 | O88: 1 | P88: 0 | Q88: 1 | R88: 2 | S88: 2 | T88: 0 | U88: 51 | V88: 27 | W88: 24 | X88: 0 | Y88: 0 | Z88: 0 | AA88: 2 | AB88: 0 | AC88: 2 | AD88: 19 | AE88: 11 | AF88: 8 | AG88: 0 | AH88: 0 | AI88: 0 | AJ88: 1 | AK88: 1 | AL88: 0 | AM88: 3 | AN88: 0 | AO88: 3 | AP88: 0 | AQ88: 0 | AR88: 0 | AS88: 12 | AT88: 9 | AU88: 3 | AV88: 1 | AW88: 1 | AX88: 0
B89: 83 | C89: 384 | D89: 169 | E89: 215 | F89: 163 | G89: 63 | H89: 100 | I89: 47 | J89: 23 | K89: 24 | L89: 120 | M89: 58 | N89: 62 | O89: 1 | P89: 1 | Q89: 0 | R89: 1 | S89: 1 | T89: 0 | U89: 29 | V89: 11 | W89: 18 | X89: 0 | Y89: 0 | Z89: 0 | AA89: 2 | AB89: 1 | AC89: 1 | AD89: 15 | AE89: 8 | AF89: 7 | AG89: 0 | AH89: 0 | AI89: 0 | AJ89: 0 | AK89: 0 | AL89: 0 | AM89: 0 | AN89: 0 | AO89: 0 | AP89: 0 | AQ89: 0 | AR89: 0 | AS89: 6 | AT89: 3 | AU89: 3 | AV89: 0 | AW89: 0 | AX89: 0
B90: 84 | C90: 399 | D90: 191 | E90: 208 | F90: 157 | G90: 58 | H90: 99 | I90: 35 | J90: 17 | K90: 18 | L90: 155 | M90: 92 | N90: 63 | O90: 2 | P90: 1 | Q90: 1 | R90: 0 | S90: 0 | T90: 0 | U90: 32 | V90: 12 | W90: 20 | X90: 0 | Y90: 0 | Z90: 0 | AA90: 0 | AB90: 0 | AC90: 0 | AD90: 12 | AE90: 7 | AF90: 5 | AG90: 0 | AH90: 0 | AI90: 0 | AJ90: 0 | AK90: 0 | AL90: 0 | AM90: 1 | AN90: 1 | AO90: 0 | AP90: 1 | AQ90: 0 | AR90: 1 | AS90: 4 | AT90: 3 | AU90: 1 | AV90: 0 | AW90: 0 | AX90: 0
A91: 합계 | B91: 85 | C91: 339 | D91: 150 | E91: 189 | F91: 120 | G91: 38 | H91: 82 | I91: 49 | J91: 27 | K91: 22 | L91: 115 | M91: 60 | N91: 55 | O91: 1 | P91: 1 | Q91: 0 | R91: 1 | S91: 0 | T91: 1 | U91: 34 | V91: 14 | W91: 20 | X91: 0 | Y91: 0 | Z91: 0 | AA91: 1 | AB91: 0 | AC91: 1 | AD91: 11 | AE91: 3 | AF91: 8 | AG91: 0 | AH91: 0 | AI91: 0 | AJ91: 2 | AK91: 2 | AL91: 0 | AM91: 0 | AN91: 0 | AO91: 0 | AP91: 0 | AQ91: 0 | AR91: 0 | AS91: 5 | AT91: 5 | AU91: 0 | AV91: 0 | AW91: 0 | AX91: 0
B92: 86 | C92: 317 | D92: 120 | E92: 197 | F92: 111 | G92: 31 | H92: 80 | I92: 24 | J92: 9 | K92: 15 | L92: 125 | M92: 54 | N92: 71 | O92: 1 | P92: 1 | Q92: 0 | R92: 2 | S92: 2 | T92: 0 | U92: 34 | V92: 12 | W92: 22 | X92: 0 | Y92: 0 | Z92: 0 | AA92: 0 | AB92: 0 | AC92: 0 | AD92: 12 | AE92: 6 | AF92: 6 | AG92: 1 | AH92: 1 | AI92: 0 | AJ92: 1 | AK92: 1 | AL92: 0 | AM92: 0 | AN92: 0 | AO92: 0 | AP92: 0 | AQ92: 0 | AR92: 0 | AS92: 6 | AT92: 3 | AU92: 3 | AV92: 0 | AW92: 0 | AX92: 0
B93: 87 | C93: 276 | D93: 104 | E93: 172 | F93: 111 | G93: 29 | H93: 82 | I93: 22 | J93: 11 | K93: 11 | L93: 107 | M93: 49 | N93: 58 | O93: 0 | P93: 0 | Q93: 0 | R93: 0 | S93: 0 | T93: 0 | U93: 23 | V93: 7 | W93: 16 | X93: 0 | Y93: 0 | Z93: 0 | AA93: 1 | AB93: 1 | AC93: 0 | AD93: 9 | AE93: 5 | AF93: 4 | AG93: 0 | AH93: 0 | AI93: 0 | AJ93: 1 | AK93: 1 | AL93: 0 | AM93: 0 | AN93: 0 | AO93: 0 | AP93: 0 | AQ93: 0 | AR93: 0 | AS93: 2 | AT93: 1 | AU93: 1 | AV93: 0 | AW93: 0 | AX93: 0
B94: 88 | C94: 211 | D94: 88 | E94: 123 | F94: 66 | G94: 17 | H94: 49 | I94: 17 | J94: 8 | K94: 9 | L94: 100 | M94: 46 | N94: 54 | O94: 1 | P94: 0 | Q94: 1 | R94: 0 | S94: 0 | T94: 0 | U94: 18 | V94: 12 | W94: 6 | X94: 0 | Y94: 0 | Z94: 0 | AA94: 0 | AB94: 0 | AC94: 0 | AD94: 5 | AE94: 2 | AF94: 3 | AG94: 1 | AH94: 1 | AI94: 0 | AJ94: 0 | AK94: 0 | AL94: 0 | AM94: 0 | AN94: 0 | AO94: 0 | AP94: 0 | AQ94: 0 | AR94: 0 | AS94: 3 | AT94: 2 | AU94: 1 | AV94: 0 | AW94: 0 | AX94: 0
B95: 89 | C95: 191 | D95: 63 | E95: 128 | F95: 72 | G95: 10 | H95: 62 | I95: 17 | J95: 4 | K95: 13 | L95: 77 | M95: 41 | N95: 36 | O95: 0 | P95: 0 | Q95: 0 | R95: 1 | S95: 0 | T95: 1 | U95: 15 | V95: 4 | W95: 11 | X95: 0 | Y95: 0 | Z95: 0 | AA95: 1 | AB95: 0 | AC95: 1 | AD95: 5 | AE95: 2 | AF95: 3 | AG95: 0 | AH95: 0 | AI95: 0 | AJ95: 0 | AK95: 0 | AL95: 0 | AM95: 0 | AN95: 0 | AO95: 0 | AP95: 0 | AQ95: 0 | AR95: 0 | AS95: 3 | AT95: 2 | AU95: 1 | AV95: 0 | AW95: 0 | AX95: 0
B96: 90 | C96: 131 | D96: 44 | E96: 87 | F96: 48 | G96: 12 | H96: 36 | I96: 9 | J96: 3 | K96: 6 | L96: 64 | M96: 26 | N96: 38 | O96: 2 | P96: 1 | Q96: 1 | R96: 0 | S96: 0 | T96: 0 | U96: 8 | V96: 2 | W96: 6 | X96: 0 | Y96: 0 | Z96: 0 | AA96: 0 | AB96: 0 | AC96: 0 | AD96: 0 | AE96: 0 | AF96: 0 | AG96: 0 | AH96: 0 | AI96: 0 | AJ96: 0 | AK96: 0 | AL96: 0 | AM96: 0 | AN96: 0 | AO96: 0 | AP96: 0 | AQ96: 0 | AR96: 0 | AS96: 0 | AT96: 0 | AU96: 0 | AV96: 0 | AW96: 0 | AX96: 0
B97: 91 | C97: 98 | D97: 34 | E97: 64 | F97: 19 | G97: 4 | H97: 15 | I97: 9 | J97: 4 | K97: 5 | L97: 56 | M97: 23 | N97: 33 | O97: 1 | P97: 0 | Q97: 1 | R97: 0 | S97: 0 | T97: 0 | U97: 10 | V97: 2 | W97: 8 | X97: 0 | Y97: 0 | Z97: 0 | AA97: 0 | AB97: 0 | AC97: 0 | AD97: 3 | AE97: 1 | AF97: 2 | AG97: 0 | AH97: 0 | AI97: 0 | AJ97: 0 | AK97: 0 | AL97: 0 | AM97: 0 | AN97: 0 | AO97: 0 | AP97: 0 | AQ97: 0 | AR97: 0 | AS97: 0 | AT97: 0 | AU97: 0 | AV97: 0 | AW97: 0 | AX97: 0
B98: 92 | C98: 61 | D98: 18 | E98: 43 | F98: 18 | G98: 3 | H98: 15 | I98: 4 | J98: 1 | K98: 3 | L98: 38 | M98: 14 | N98: 24 | O98: 0 | P98: 0 | Q98: 0 | R98: 0 | S98: 0 | T98: 0 | U98: 1 | V98: 0 | W98: 1 | X98: 0 | Y98: 0 | Z98: 0 | AA98: 0 | AB98: 0 | AC98: 0 | AD98: 0 | AE98: 0 | AF98: 0 | AG98: 0 | AH98: 0 | AI98: 0 | AJ98: 0 | AK98: 0 | AL98: 0 | AM98: 0 | AN98: 0 | AO98: 0 | AP98: 0 | AQ98: 0 | AR98: 0 | AS98: 0 | AT98: 0 | AU98: 0 | AV98: 0 | AW98: 0 | AX98: 0
B99: 93 | C99: 50 | D99: 17 | E99: 33 | F99: 11 | G99: 2 | H99: 9 | I99: 10 | J99: 4 | K99: 6 | L99: 24 | M99: 8 | N99: 16 | O99: 0 | P99: 0 | Q99: 0 | R99: 0 | S99: 0 | T99: 0 | U99: 2 | V99: 1 | W99: 1 | X99: 0 | Y99: 0 | Z99: 0 | AA99: 0 | AB99: 0 | AC99: 0 | AD99: 1 | AE99: 0 | AF99: 1 | AG99: 0 | AH99: 0 | AI99: 0 | AJ99: 0 | AK99: 0 | AL99: 0 | AM99: 0 | AN99: 0 | AO99: 0 | AP99: 0 | AQ99: 0 | AR99: 0 | AS99: 2 | AT99: 2 | AU99: 0 | AV99: 0 | AW99: 0 | AX99: 0
B100: 94 | C100: 37 | D100: 11 | E100: 26 | F100: 11 | G100: 1 | H100: 10 | I100: 2 | J100: 0 | K100: 2 | L100: 19 | M100: 7 | N100: 12 | O100: 0 | P100: 0 | Q100: 0 | R100: 0 | S100: 0 | T100: 0 | U100: 3 | V100: 1 | W100: 2 | X100: 0 | Y100: 0 | Z100: 0 | AA100: 0 | AB100: 0 | AC100: 0 | AD100: 1 | AE100: 1 | AF100: 0 | AG100: 0 | AH100: 0 | AI100: 0 | AJ100: 1 | AK100: 1 | AL100: 0 | AM100: 0 | AN100: 0 | AO100: 0 | AP100: 0 | AQ100: 0 | AR100: 0 | AS100: 0 | AT100: 0 | AU100: 0 | AV100: 0 | AW100: 0 | AX100: 0
B101: 95 | C101: 31 | D101: 13 | E101: 18 | F101: 10 | G101: 2 | H101: 8 | I101: 4 | J101: 2 | K101: 2 | L101: 15 | M101: 7 | N101: 8 | O101: 0 | P101: 0 | Q101: 0 | R101: 0 | S101: 0 | T101: 0 | U101: 0 | V101: 0 | W101: 0 | X101: 0 | Y101: 0 | Z101: 0 | AA101: 0 | AB101: 0 | AC101: 0 | AD101: 0 | AE101: 0 | AF101: 0 | AG101: 0 | AH101: 0 | AI101: 0 | AJ101: 0 | AK101: 0 | AL101: 0 | AM101: 0 | AN101: 0 | AO101: 0 | AP101: 0 | AQ101: 0 | AR101: 0 | AS101: 2 | AT101: 2 | AU101: 0 | AV101: 0 | AW101: 0 | AX101: 0
B102: 96 | C102: 17 | D102: 6 | E102: 11 | F102: 3 | G102: 0 | H102: 3 | I102: 1 | J102: 0 | K102: 1 | L102: 12 | M102: 6 | N102: 6 | O102: 0 | P102: 0 | Q102: 0 | R102: 0 | S102: 0 | T102: 0 | U102: 0 | V102: 0 | W102: 0 | X102: 0 | Y102: 0 | Z102: 0 | AA102: 0 | AB102: 0 | AC102: 0 | AD102: 0 | AE102: 0 | AF102: 0 | AG102: 0 | AH102: 0 | AI102: 0 | AJ102: 0 | AK102: 0 | AL102: 0 | AM102: 0 | AN102: 0 | AO102: 0 | AP102: 0 | AQ102: 0 | AR102: 0 | AS102: 1 | AT102: 0 | AU102: 1 | AV102: 0 | AW102: 0 | AX102: 0
B103: 97 | C103: 5 | D103: 2 | E103: 3 | F103: 3 | G103: 1 | H103: 2 | I103: 1 | J103: 1 | K103: 0 | L103: 1 | M103: 0 | N103: 1 | O103: 0 | P103: 0 | Q103: 0 | R103: 0 | S103: 0 | T103: 0 | U103: 0 | V103: 0 | W103: 0 | X103: 0 | Y103: 0 | Z103: 0 | AA103: 0 | AB103: 0 | AC103: 0 | AD103: 0 | AE103: 0 | AF103: 0 | AG103: 0 | AH103: 0 | AI103: 0 | AJ103: 0 | AK103: 0 | AL103: 0 | AM103: 0 | AN103: 0 | AO103: 0 | AP103: 0 | AQ103: 0 | AR103: 0 | AS103: 0 | AT103: 0 | AU103: 0 | AV103: 0 | AW103: 0 | AX103: 0
B104: 98 | C104: 9 | D104: 2 | E104: 7 | F104: 1 | G104: 1 | H104: 0 | I104: 0 | J104: 0 | K104: 0 | L104: 7 | M104: 1 | N104: 6 | O104: 0 | P104: 0 | Q104: 0 | R104: 0 | S104: 0 | T104: 0 | U104: 0 | V104: 0 | W104: 0 | X104: 0 | Y104: 0 | Z104: 0 | AA104: 0 | AB104: 0 | AC104: 0 | AD104: 0 | AE104: 0 | AF104: 0 | AG104: 0 | AH104: 0 | AI104: 0 | AJ104: 0 | AK104: 0 | AL104: 0 | AM104: 0 | AN104: 0 | AO104: 0 | AP104: 0 | AQ104: 0 | AR104: 0 | AS104: 1 | AT104: 0 | AU104: 1 | AV104: 0 | AW104: 0 | AX104: 0
B105: 99 | C105: 5 | D105: 1 | E105: 4 | F105: 2 | G105: 0 | H105: 2 | I105: 0 | J105: 0 | K105: 0 | L105: 3 | M105: 1 | N105: 2 | O105: 0 | P105: 0 | Q105: 0 | R105: 0 | S105: 0 | T105: 0 | U105: 0 | V105: 0 | W105: 0 | X105: 0 | Y105: 0 | Z105: 0 | AA105: 0 | AB105: 0 | AC105: 0 | AD105: 0 | AE105: 0 | AF105: 0 | AG105: 0 | AH105: 0 | AI105: 0 | AJ105: 0 | AK105: 0 | AL105: 0 | AM105: 0 | AN105: 0 | AO105: 0 | AP105: 0 | AQ105: 0 | AR105: 0 | AS105: 0 | AT105: 0 | AU105: 0 | AV105: 0 | AW105: 0 | AX105: 0
B106: 100 | C106: 5 | D106: 2 | E106: 3 | F106: 1 | G106: 0 | H106: 1 | I106: 0 | J106: 0 | K106: 0 | L106: 3 | M106: 1 | N106: 2 | O106: 0 | P106: 0 | Q106: 0 | R106: 0 | S106: 0 | T106: 0 | U106: 0 | V106: 0 | W106: 0 | X106: 0 | Y106: 0 | Z106: 0 | AA106: 0 | AB106: 0 | AC106: 0 | AD106: 1 | AE106: 1 | AF106: 0 | AG106: 0 | AH106: 0 | AI106: 0 | AJ106: 0 | AK106: 0 | AL106: 0 | AM106: 0 | AN106: 0 | AO106: 0 | AP106: 0 | AQ106: 0 | AR106: 0 | AS106: 0 | AT106: 0 | AU106: 0 | AV106: 0 | AW106: 0 | AX106: 0
B107: 101 | C107: 3 | D107: 0 | E107: 3 | F107: 1 | G107: 0 | H107: 1 | I107: 0 | J107: 0 | K107: 0 | L107: 2 | M107: 0 | N107: 2 | O107: 0 | P107: 0 | Q107: 0 | R107: 0 | S107: 0 | T107: 0 | U107: 0 | V107: 0 | W107: 0 | X107: 0 | Y107: 0 | Z107: 0 | AA107: 0 | AB107: 0 | AC107: 0 | AD107: 0 | AE107: 0 | AF107: 0 | AG107: 0 | AH107: 0 | AI107: 0 | AJ107: 0 | AK107: 0 | AL107: 0 | AM107: 0 | AN107: 0 | AO107: 0 | AP107: 0 | AQ107: 0 | AR107: 0 | AS107: 0 | AT107: 0 | AU107: 0 | AV107: 0 | AW107: 0 | AX107: 0
B108: 102 | C108: 1 | D108: 0 | E108: 1 | F108: 0 | G108: 0 | H108: 0 | I108: 0 | J108: 0 | K108: 0 | L108: 1 | M108: 0 | N108: 1 | O108: 0 | P108: 0 | Q108: 0 | R108: 0 | S108: 0 | T108: 0 | U108: 0 | V108: 0 | W108: 0 | X108: 0 | Y108: 0 | Z108: 0 | AA108: 0 | AB108: 0 | AC108: 0 | AD108: 0 | AE108: 0 | AF108: 0 | AG108: 0 | AH108: 0 | AI108: 0 | AJ108: 0 | AK108: 0 | AL108: 0 | AM108: 0 | AN108: 0 | AO108: 0 | AP108: 0 | AQ108: 0 | AR108: 0 | AS108: 0 | AT108: 0 | AU108: 0 | AV108: 0 | AW108: 0 | AX108: 0
B109: 103 | C109: 1 | D109: 1 | E109: 0 | F109: 1 | G109: 1 | H109: 0 | I109: 0 | J109: 0 | K109: 0 | L109: 0 | M109: 0 | N109: 0 | O109: 0 | P109: 0 | Q109: 0 | R109: 0 | S109: 0 | T109: 0 | U109: 0 | V109: 0 | W109: 0 | X109: 0 | Y109: 0 | Z109: 0 | AA109: 0 | AB109: 0 | AC109: 0 | AD109: 0 | AE109: 0 | AF109: 0 | AG109: 0 | AH109: 0 | AI109: 0 | AJ109: 0 | AK109: 0 | AL109: 0 | AM109: 0 | AN109: 0 | AO109: 0 | AP109: 0 | AQ109: 0 | AR109: 0 | AS109: 0 | AT109: 0 | AU109: 0 | AV109: 0 | AW109: 0 | AX109: 0
B110: 104 | C110: 1 | D110: 0 | E110: 1 | F110: 0 | G110: 0 | H110: 0 | I110: 0 | J110: 0 | K110: 0 | L110: 1 | M110: 0 | N110: 1 | O110: 0 | P110: 0 | Q110: 0 | R110: 0 | S110: 0 | T110: 0 | U110: 0 | V110: 0 | W110: 0 | X110: 0 | Y110: 0 | Z110: 0 | AA110: 0 | AB110: 0 | AC110: 0 | AD110: 0 | AE110: 0 | AF110: 0 | AG110: 0 | AH110: 0 | AI110: 0 | AJ110: 0 | AK110: 0 | AL110: 0 | AM110: 0 | AN110: 0 | AO110: 0 | AP110: 0 | AQ110: 0 | AR110: 0 | AS110: 0 | AT110: 0 | AU110: 0 | AV110: 0 | AW110: 0 | AX110: 0
B111: 106

Sheet Sheet1 (hidden)
A1: 구산동 | B1: 2238
A2: 역촌동 | B2: 2143
A3: 진관동 | B3: 1968
A4: 불광1동 | B4: 1720
A5: 녹번동 | B5: 1641
A6: 불광2동 | B6: 1442
A7: 응암3동 | B7: 1327
A8: 응암1동 | B8: 1326
A9: 대조동 | B9: 1230
A10: 신사1동 | B10: 1229
A11: 갈현2동 | B11: 1204
A12: 갈현1동 | B12: 1046
A13: 응암2동 | B13: 987
A14: 신사2동 | B14: 927
A15: 증산동 | B15: 703
A16: 수색동 | B16: 623

Sheet Sheet2 (hidden)
A1: 은평구 동별 장애인현황(유형별) (2024. 3월말)
A2: 동별 | B2: 합계 | E2: 지적 | H2: 자폐 | K2: 발달장애인 | N2: 발달장애인비율
B3: 합계 | C3: 남성 | D3: 여성 | E3: 소계 | F3: 남성 | G3: 여성 | H3: 소계 | I3: 남성 | J3: 여성 | K3: 소계 | L3: 남성 | M3: 여성
A4: 합 계 | B4: =C4+D4 -> 21226 | C4: =SUM(C5:C20) -> 12347 | D4: =SUM(D5:D20) -> 8879 | E4: =F4+G4 -> 1891 | F4: =SUM(F5:F20) -> 1241 | G4: =SUM(G5:G20) -> 650 | H4: =I4+J4 -> 514 | I4: =SUM(I5:I20) -> 427 | J4: =SUM(J5:J20) -> 87 | K4: =L4+M4 -> 2405 | L4: =F4+I4 -> 1668 | M4: =G4+J4 -> 737 | N4: =K4/B4 -> 0.113304438
A5: 녹번동 | B5: =C5+D5 -> 1617 | C5: =유형별!C5 -> 925 | D5: =유형별!D5 -> 692 | E5: =F5+G5 -> 112 | F5: =유형별!R5 -> 71 | G5: =유형별!S5 -> 41 | H5: =I5+J5 -> 22 | I5: =유형별!X5 -> 16 | J5: =유형별!Y5 -> 6 | K5: =E5+H5 -> 134 | L5: =F5+I5 -> 87 | M5: =G5+J5 -> 47 | N5: 0.08286951144
A6: 불광1동 | B6: 1622 | C6: =유형별!C6 -> 909 | D6: =유형별!D6 -> 713 | E6: 112 | F6: =유형별!R6 -> 64 | G6: =유형별!S6 -> 48 | H6: 32 | I6: =유형별!X6 -> 27 | J6: =유형별!Y6 -> 5 | K6: 144 | L6: 91 | M6: 53 | N6: 0.08877928483
A7: 불광2동 | B7: 1437 | C7: =유형별!C7 -> 843 | D7: =유형별!D7 -> 594 | E7: 118 | F7: =유형별!R7 -> 74 | G7: =유형별!S7 -> 44 | H7: 29 | I7: =유형별!X7 -> 29 | J7: =유형별!Y7 -> 0 | K7: 147 | L7: 103 | M7: 44 | N7: 0.1022964509
A8: 갈현1동 | B8: 690 | C8: =유형별!C8 -> 391 | D8: =유형별!D8 -> 299 | E8: 58 | F8: =유형별!R8 -> 37 | G8: =유형별!S8 -> 21 | H8: 18 | I8: =유형별!X8 -> 16 | J8: =유형별!Y8 -> 2 | K8: 76 | L8: 53 | M8: 23 | N8: 0.1101449275 | R8: =2206/21767 -> 0.1013460743
A9: 갈현2동 | B9: 1254 | C9: =유형별!C9 -> 736 | D9: =유형별!D9 -> 518 | E9: 110 | F9: =유형별!R9 -> 69 | G9: =유형별!S9 -> 41 | H9: 21 | I9: =유형별!X9 -> 14 | J9: =유형별!Y9 -> 7 | K9: 131 | L9: 83 | M9: 48 | N9: 0.1044657097
A10: 구산동 | B10: 2106 | C10: =유형별!C10 -> 1451 | D10: =유형별!D10 -> 655 | E10: 403 | F10: =유형별!R10 -> 312 | G10: =유형별!S10 -> 91 | H10: 50 | I10: =유형별!X10 -> 40 | J10: =유형별!Y10 -> 10 | K10: 453 | L10: 352 | M10: 101 | N10: 0.2150997151
A11: 대조동 | B11: 1231 | C11: =유형별!C11 -> 709 | D11: =유형별!D11 -> 522 | E11: 72 | F11: =유형별!R11 -> 48 | G11: =유형별!S11 -> 24 | H11: 28 | I11: =유형별!X11 -> 23 | J11: =유형별!Y11 -> 5 | K11: 100 | L11: 71 | M11: 29 | N11: 0.08123476848
A12: 응암1동 | B12: 1312 | C12: =유형별!C12 -> 710 | D12: =유형별!D12 -> 602 | E12: 71 | F12: =유형별!R12 -> 42 | G12: =유형별!S12 -> 29 | H12: 35 | I12: =유형별!X12 -> 30 | J12: =유형별!Y12 -> 5 | K12: 106 | L12: 72 | M12: 34 | N12: 0.08079268293
A13: 응암2동 | B13: 953 | C13: =유형별!C13 -> 531 | D13: =유형별!D13 -> 422 | E13: 69 | F13: =유형별!R13 -> 43 | G13: =유형별!S13 -> 26 | H13: 36 | I13: =유형별!X13 -> 31 | J13: =유형별!Y13 -> 5 | K13: 105 | L13: 74 | M13: 31 | N13: 0.1101783841
A14: 응암3동 | B14: 1303 | C14: =유형별!C14 -> 727 | D14: =유형별!D14 -> 576 | E14: 88 | F14: =유형별!R14 -> 58 | G14: =유형별!S14 -> 30 | H14: 21 | I14: =유형별!X14 -> 16 | J14: =유형별!Y14 -> 5 | K14: 109 | L14: 74 | M14: 35 | N14: 0.08365310821
A15: 역촌동 | B15: 2163 | C15: =유형별!C15 -> 1210 | D15: =유형별!D15 -> 953 | E15: 205 | F15: =유형별!R15 -> 126 | G15: =유형별!S15 -> 79 | H15: 41 | I15: =유형별!X15 -> 34 | J15: =유형별!Y15 -> 7 | K15: 246 | L15: 160 | M15: 86 | N15: 0.1137309293
A16: 신사1동 | B16: 1255 | C16: =유형별!C16 -> 746 | D16: =유형별!D16 -> 509 | E16: 148 | F16: =유형별!R16 -> 88 | G16: =유형별!S16 -> 60 | H16: 31 | I16: =유형별!X16 -> 24 | J16: =유형별!Y16 -> 7 | K16: 179 | L16: 112 | M16: 67 | N16: 0.1426294821
A17: 신사2동 | B17: 883 | C17: =유형별!C17 -> 509 | D17: =유형별!D17 -> 374 | E17: 79 | F17: =유형별!R17 -> 46 | G17: =유형별!S17 -> 33 | H17: 21 | I17: =유형별!X17 -> 17 | J17: =유형별!Y17 -> 4 | K17: 100 | L17: 63 | M17: 37 | N17: 0.1132502831
A18: 증산동 | B18: 667 | C18: =유형별!C18 -> 393 | D18: =유형별!D18 -> 274 | E18: 46 | F18: =유형별!R18 -> 31 | G18: =유형별!S18 -> 15 | H18: 17 | I18: =유형별!X18 -> 17 | J18: =유형별!Y18 -> 0 | K18: 63 | L18: 48 | M18: 15 | N18: 0.09445277361
A19: 수색동 | B19: 824 | C19: =유형별!C19 -> 444 | D19: =유형별!D19 -> 380 | E19: 64 | F19: =유형별!R19 -> 43 | G19: =유형별!S19 -> 21 | H19: 20 | I19: =유형별!X19 -> 17 | J19: =유형별!Y19 -> 3 | K19: 84 | L19: 60 | M19: 24 | N19: 0.1019417476
A20: 진관동 | B20: 1909 | C20: =유형별!C20 -> 1113 | D20: =유형별!D20 -> 796 | E20: 136 | F20: =유형별!R20 -> 89 | G20: =유형별!S20 -> 47 | H20: 92 | I20: =유형별!X20 -> 76 | J20: =유형별!Y20 -> 16 | K20: 228 | L20: 165 | M20: 63 | N20: 0.1194342588
A22: *발달장애인 수는 2,206명으로 전체 장애인의 10.1%

Sheet Sheet3 (hidden)
A2: 자치구 | B2: 장애유형 | C2: 2023 | G2: 자치구 | H2: 장애유형 | I2: 2022 | M2: 자치구 | N2: 장애유형 | O2: 2021
C3: 계 | D3: 남 | E3: 여 | I3: 계 | J3: 남 | K3: 여 | O3: 계 | P3: 남 | Q3: 여
A4: 은평구 | B4: 합 계 | C4: 21602 | D4: 12604 | E4: 8998 | G4: 은평구 | H4: 합 계 | I4: =SUM(I5:I19) -> 21753 | J4: =SUM(J5:J19) -> 12687 | K4: 9066 | M4: 은평구 | N4: 합 계 | O4: 21753 | P4: 12704 | Q4: 9049
B5: 지체 | C5: 8636 | D5: 4714 | E5: 3922 | H5: 지체 | I5: 8837 | J5: 4842 | K5: 3995 | N5: 지체 | O5: 8917 | P5: 4897 | Q5: 4020
B6: 시각 | C6: 2265 | D6: 1340 | E6: 925 | H6: 시각 | I6: 2274 | J6: 1364 | K6: 910 | N6: 시각 | O6: 2315 | P6: 1387 | Q6: 928
B7: 청각 | C7: 3350 | D7: 1869 | E7: 1481 | H7: 청각 | I7: 3350 | J7: 1853 | K7: 1497 | N7: 청각 | O7: 3282 | P7: 1814 | Q7: 1468
B8: 언어 | C8: 173 | D8: 124 | E8: 49 | H8: 언어 | I8: 181 | J8: 134 | K8: 47 | N8: 언어 | O8: 177 | P8: 129 | Q8: 48
B9: 지적 | C9: 1863 | D9: 1222 | E9: 641 | H9: 지적 | I9: 1828 | J9: 1200 | K9: 628 | N9: 지적 | O9: 1805 | P9: 1185 | Q9: 620
B10: 뇌병변 | C10: 2188 | D10: 1307 | E10: 881 | H10: 뇌병변 | I10: 2218 | J10: 1318 | K10: 900 | N10: 뇌병변 | O10: 2244 | P10: 1349 | Q10: 895
B11: 자폐성 | C11: 450 | D11: 377 | E11: 73 | H11: 자폐성 | I11: 396 | J11: 333 | K11: 63 | N11: 자폐성 | O11: 355 | P11: 298 | Q11: 57
B12: 정신 | C12: 1137 | D12: 696 | E12: 441 | H12: 정신 | I12: 1148 | J12: 705 | K12: 443 | N12: 정신 | O12: 1162 | P12: 718 | Q12: 444
B13: 신장 | C13: 928 | D13: 569 | E13: 359 | H13: 신장 | I13: 894 | J13: 542 | K13: 352 | N13: 신장 | O13: 874 | P13: 533 | Q13: 341
B14: 심장 | C14: 49 | D14: 26 | E14: 23 | H14: 심장 | I14: 55 | J14: 24 | K14: 31 | N14: 심장 | O14: 55 | P14: 26 | Q14: 29
B15: 호흡기 | C15: 122 | D15: 88 | E15: 34 | H15: 호흡기 | I15: 120 | J15: 86 | K15: 34 | N15: 호흡기 | O15: 130 | P15: 92 | Q15: 38
B16: 간 | C16: 164 | D16: 109 | E16: 55 | H16: 간 | I16: 168 | J16: 113 | K16: 55 | N16: 간 | O16: 166 | P16: 114 | Q16: 52
B17: 안면 | C17: 25 | D17: 13 | E17: 12 | H17: 안면 | I17: 22 | J17: 11 | K17: 11 | N17: 안면 | O17: 23 | P17: 12 | Q17: 11
B18: 장루.요루 | C18: 187 | D18: 118 | E18: 69 | H18: 장루.요루 | I18: 194 | J18: 126 | K18: 68 | N18: 장루.요루 | O18: 181 | P18: 114 | Q18: 67
B19: 뇌전증 | C19: 65 | D19: 32 | E19: 33 | H19: 뇌전증 | I19: 68 | J19: 36 | K19: 32 | N19: 뇌전증 | O19: 67 | P19: 36 | Q19: 31
C22: 2023 | D22: 2022 | E22: 2021 | G22: 2024 | H22: 2025 | I22: 2026 | J22: 2027 | K22: 2028
A23: 외부신체기능장애 | C23: =SUM(C5,C10,C6,C7,C8,C17) -> 16637 | D23: =SUM(I5,I10,I6,I7,I8,I17) -> 16882 | E23: =SUM(O5,O10,O6,O7,O8,O17) -> 16958 | G23: =C23+C23*$G$29 -> 16478.99841 | H23: =G23+G23*$G$29 -> 16322.49736 | I23: =H23+H23*$G$29 -> 16167.48261 | J23: =I23+I23*$G$29 -> 16013.94002 | K23: =J23+J23*$G$29 -> 15861.85563
A24: 내부기관장애 | C24: =SUM(C13,C14,C16,C15,C18,C19) -> 1515 | D24: =SUM(I13:I16,I18,I19) -> 1499 | E24: =SUM(O13:O16,O18:O19) -> 1473 | G24: =C24+C24*$G$30 -> 1536.4524 | H24: =G24+G24*$G$30 -> 1558.208566 | I24: =H24+H24*$G$30 -> 1580.272799 | J24: =I24+I24*$G$30 -> 1602.649462 | K24: =J24+J24*$G$30 -> 1625.342978
A25: 정신적장애 | C25: =SUM(C9,C12,C11) -> 3450 | D25: =SUM(I9,I11,I12) -> 3372 | E25: =SUM(O9,O11,O12) -> 3322 | G25: =C25+C25*$G$31 -> 3515.8605 | H25: =G25+G25*$G$31 -> 3582.978277 | I25: =H25+H25*$G$31 -> 3651.377332 | J25: =I25+I25*$G$31 -> 3721.082126 | K25: =J25+J25*$G$31 -> 3792.117583
A26: 계 | C26: =SUM(C23:C25) -> 21602 | D26: =SUM(D23:D25) -> 21753 | E26: =SUM(E23:E25) -> 21753 | G26: =SUM(G23:G25) -> 21531.31131 | H26: =SUM(H23:H25) -> 21463.68421 | I26: =SUM(I23:I25) -> 21399.13274 | J26: =SUM(J23:J25) -> 21337.67161 | K26: =SUM(K23:K25) -> 21279.3162
A29: 외부신체기능장애 | C29: =(D23-C23)/D23 -> 0.01451249852 | D29: 0.004481660573 | F29: =(C29+D29)/2 -> 0.009497079546 | G29: -0.009497
A30: 내부기관장애 | C30: -0.01067378252 | D30: -0.01765105227 | F30: =(C30+D30)/2 -> -0.0141624174 | G30: 0.01416
A31: 정신적장애 | C31: -0.0231316726 | D31: -0.01505117399 | F31: =(C31+D31)/2 -> -0.01909142329 | G31: 0.01909
A32: 계
C36: 2024 | D36: 2025 | E36: 2026 | F36: 2027 | G36: 2028
C37: -0.0026
A38: 외부신체기능장애 | B38: 16637 | C38: 16593.7438 | D38: 16550.60007 | E38: 16507.56851 | F38: 16464.64883 | G38: 16421.84074
A39: 내부기관장애 | B39: 1515 | C39: 1511.061 | D39: 1507.132241 | E39: 1503.213698 | F39: 1499.305342 | G39: 1495.407148
A40: 정신적장애 | B40: 3450 | C40: 3441.03 | D40: 3432.083322 | E40: 3423.159905 | F40: 3414.25969 | G40: 3405.382614
B41: 21602 | C41: 21545.8348 | D41: 21489.81563 | E41: 21433.94211 | F41: 21378.21386 | G41: 21322.6305
